Workbook

Sheet Caratula
C29: INFORME DE LOS ESTADOS FINANCIEROS INTERMEDIOS POR EL PERIODO FINALIZADO EL 30 DE JUNIO DE 2020

Sheet Indice
S2: 1 | T2: Enero
B3: Sociedad: | C3: PASFIN S.A.E.C.A. | S3: 2 | T3: Febrero
S4: 3 | T4: Marzo
S5: 4 | T5: Abril
A6: Fecha Presentación: | B6: 2020-06-30 | S6: 5 | T6: Mayo
S7: 6 | T7: Junio
S8: 7 | T8: Julio
C9: INDICE | D9: NOTA | S9: 8 | T9: Agosto
B10: Informacion General | S10: 9 | T10: Septiembre
C11: Descripción de la naturaleza y del negocio de la Sociedad | D11: Nota 1 | S11: 10 | T11: Octubre
C12: Resumen de las principales políticas contables | D12: Nota 2 | S12: 11 | T12: Noviembre
B13: Balance General | D13: BG | S13: 12 | T13: Diciembre
B14: Estado de Resultados | D14: ER
B15: Estado de Evolución del Patrimonio Neto | D15: EVPN
B16: Estado de Flujos de Efectivo | D16: EFE
C17: Efectivo y equivalente de efectivo | D17: Nota 3
C18: Inversiones temporales | D18: Nota 4
C19: Cartera de créditos | D19: Nota 5
C20: Otros créditos | D20: Nota 6
C21: Inventarios | D21: Nota 7
C22: Inversión en asociadas | D22: Nota 8
C23: Propiedades, planta y equipo | D23: Nota 9
C24: Activos disponibles para la venta | D24: Nota 10
C25: Activos intangibles | D25: Nota 11
C26: Goodwill | D26: Nota 12
C27: Cuentas por pagar comerciales | D27: Nota 13
C28: Préstamos a corto y largo plazo | D28: Nota 14
C29: Porción corriente de la deuda a largo plazo | D29: Nota 15
C30: Remuneraciones y cargas sociales a pagar | D30: Nota 16
C31: Impuestos a pagar | D31: Nota 17
C32: Provisiones | D32: Nota 18
C33: Otros pasivos | D33: Nota 19
C34: Capital integrado | D34: Nota 20
C35: Reserva de revalúo | D35: Nota 21
C36: Reserva legal | D36: Nota 21
C37: Reservas estatutarias | D37: Nota 21
C38: Reservas facultativas | D38: Nota 21
C39: Diferencia transitoria por conversión | D39: Nota 22
C40: Resultados acumulados | D40: Nota 23
C41: Interés minoritario | D41: Nota 24
C42: Ventas | D42: Nota 25
C43: Costo de ventas | D43: Nota 26
C44: Gastos de ventas | D44: Nota 27
C45: Gastos administrativos | D45: Nota 27
C46: Otros ingresos y gastos | D46: Nota 28
C47: Ingresos financieros - neto | D47: Nota 29
C48: Gastos financieros - neto | D48: Nota 29
C49: Resultado de inversiones en asociadas | D49: Nota 30
C50: Resultado participación minoritaria | D50: Nota 31
C51: Impuesto a la renta | D51: Nota 32
C52: Resultado extraordinario neto de impuesto a la renta | D52: Nota 33
C53: Resultado sobre actividades discontinuadas neto de impuesto a la renta | D53: Nota 34
C54: Utilidad/(Pérdida) neta del año y por acción ordinaria | D54: Nota 35
B55: Otras Notas de los Estados Financieros
C56: Activos gravados | D56: Nota 36
C57: Contingencias y compromisos | D57: Nota 37
C58: Impuesto diferido | D58: Nota 38
C59: Hechos posteriores | D59: Nota 39
C60: Saldos y transacciones con partes relacionadas | D60: Nota 40

Sheet BG
A1: =Indice!C3 -> PASFIN S.A.E.C.A. | E1: Indice
A4: ESTADO DE SITUACION PATRIMONIAL
A5: =IFERROR(IF(Indice!B6="","Al dia... de mes… de año 2XX2…","Al "&DAY(Indice!B6)&" de "&VLOOKUP(MONTH(Indice!B6),Indice!S:T,2,0)&" de "&YEAR(Indice!B6)),"Al dia... de mes… de año 2XX2…") -> Al 30 de Junio de 2020
B6: Comparativo con el ejercicio anterior
A7: (Cifras expresadas en guaraníes)
E9: Nota | F9: 2020-06-01 | G9: 2019-12-01
B10: ACTIVOS
B11: Activos Corrientes
C12: Efectivo y equivalente de efectivo | E12: 3 | F12: ='Nota 3'!C16 -> 13282994665 | G12: ='Nota 3'!D16 -> 20886433456
C13: Inversiones temporales | E13: 4 | F13: ='Nota 4'!B14 -> 6197454327 | G13: ='Nota 4'!C14 -> 45000000
C14: Cartera de créditos | E14: 5 | F14: ='Nota 5'!C15 -> 236008322586 | G14: ='Nota 5'!D15 -> 296632593813
C15: Otros créditos | E15: 6 | F15: ='Nota 6'!B19 -> 7515962072 | G15: ='Nota 6'!C19 -> 3121533672
C16: Inventarios | E16: 7 | F16: ='Nota 7'!B15 -> 0 | G16: ='Nota 7'!C15 -> 0
C17: Total activos corrientes | F17: =SUM(F12:F16) -> 263004733650 | G17: =SUM(G12:G16) -> 320685560941
B18: Activos no Corrientes
C19: Inversiones temporales | E19: 4 | F19: ='Nota 4'!B21 -> 210000000 | G19: ='Nota 4'!C21 -> 320000000
C20: Cartera de créditos | E20: 5 | F20: ='Nota 5'!C27 -> 104782909895 | G20: ='Nota 5'!D27 -> 51917623134
C21: Otros créditos | E21: 6 | F21: ='Nota 6'!B25 -> 38000000 | G21: ='Nota 6'!C25 -> 38000000
C22: Inversión en asociadas | E22: 8 | F22: ='Nota 8'!B8 -> 150000000 | G22: ='Nota 8'!C8 -> 150000000
C23: Propiedades, planta y equipo/Bienes de uso, neto | E23: 9 | F23: ='Nota 9'!L17 -> 1844806136 | G23: ='Nota 9'!M17 -> 1925854584
C24: Activos disponibles para la venta | E24: 10 | F24: ='Nota 10'!B11 -> 22329040397 | G24: ='Nota 10'!C11 -> 21503939176
C25: Activos intangibles | E25: 11 | F25: ='Nota 11'!B10 -> 3984476644 | G25: ='Nota 11'!C10 -> 4240927495
C26: Goodwill | E26: 12 | F26: ='Nota 12'!B11 -> 0 | G26: ='Nota 12'!C11 -> 0
C27: Activo por impuesto diferido | E27: 38 | F27: ='Nota 38'!D34 -> 2845737 | G27: ='Nota 38'!F34 -> 2845737
C28: Total activos no corrientes | F28: =SUM(F19:F27) -> 133342078809 | G28: =SUM(G19:G27) -> 80099190126
B29: Total Activos | F29: =+F17+F28 -> 396346812459 | G29: =+G17+G28 -> 400784751067
B30: PASIVOS Y PATRIMONIO NETO
B31: Pasivos corrientes | F31: -1
C32: Cuentas por pagar comerciales | E32: 13 | F32: ='Nota 13'!D11 -> 752648764 | G32: ='Nota 13'!E11 -> 1605590749
C33: Préstamos a corto plazo | E33: 14 | F33: ='Nota 14'!E125 -> 108906193735 | G33: ='Nota 14'!K125 -> 114325411973
C34: Porción corriente de la deuda a largo plazo | E34: 15 | F34: ='Nota 15'!B14 -> 0 | G34: ='Nota 15'!C14 -> 0
C35: Remuneraciones y cargas sociales a pagar | E35: 16 | F35: ='Nota 16'!B10 -> 371023551 | G35: ='Nota 16'!C10 -> 64453412
C36: Impuestos a pagar | E36: 17 | F36: ='Nota 17'!B11 -> 738898392 | G36: ='Nota 17'!C11 -> 811270137
C37: Provisiones | E37: 18 | F37: ='Nota 18'!B11 -> 9497476 | G37: ='Nota 18'!C11 -> 0
C38: Otros pasivos corrientes | E38: 19 | F38: ='Nota 19'!B11 -> 7011249267 | G38: ='Nota 19'!C11 -> 455986873
C39: Total Pasivos Corrientes | F39: =+F32+F33+F34+F35+F36+F38+F37 -> 117789511185 | G39: =SUM(G32:G38) -> 117262713144
B40: Pasivos no corrientes
C41: Préstamos a largo plazo | E41: 14 | F41: ='Nota 14'!E186 -> 160424466846 | G41: ='Nota 14'!K186 -> 162044149219
C42: Otros pasivos no corrientes | E42: 19 | F42: 0 | G42: 0
C43: Total pasivos no corrientes | F43: =SUM(F41:F42) -> 160424466846 | G43: =SUM(G41:G42) -> 162044149219
B44: Total Pasivos | F44: =+F39+F43 -> 278213978031 | G44: =+G39+G43 -> 279306862363
B45: Patrimonio Neto
C46: Capital integrado | E46: 20 | F46: ='Nota 20'!B13 -> 107942000000 | G46: ='Nota 20'!C13 -> 98910000000
C47: Adelanto irrevocable a cuenta de integración de capital | E47: 20 | F47: ='Nota 20'!B10 -> 10667945 | G47: ='Nota 20'!C10 -> 0
C48: Reserva de revalúo | E48: 21 | F48: =' Nota 21'!B8 -> 383681070 | G48: =' Nota 21'!C8 -> 383681070
C49: Reserva legal | E49: 21 | F49: =' Nota 21'!B13 -> 3782180262 | G49: =' Nota 21'!C13 -> 3782180262
C50: Reservas estatutarias | E50: 21 | F50: 0 | G50: 0
C51: Reservas facultatitvas | E51: 21 | F51: =' Nota 21'!B16 -> 9409093934 | G51: =' Nota 21'!C16 -> 4100000000
C52: Diferencia transitoria por conversión | E52: 22 | F52: ='Nota 22'!B8 -> 0 | G52: ='Nota 22'!C8 -> 0
C53: Resultados acumulados | E53: 23 | F53: ='Nota 23'!B8 -> 4170698 | G53: ='Nota 23'!C8 -> 4170698
C54: Resultado del ejercicio | E54: 23 | F54: ='Nota 23'!B9 -> -3398959481 | G54: ='Nota 23'!C9 -> 14297856674
C55: Subtotal | F55: =SUM(F46:F54) -> 118132834428 | G55: =SUM(G46:G54) -> 121477888704
C56: Interés minoritario | E56: 24 | F56: ='Nota 24'!B8 -> 0 | G56: ='Nota 24'!C8 -> 0
B57: Total Patrimonio Neto | F57: =F55 -> 118132834428 | G57: =G55 -> 121477888704
B58: Total Pasivos y Patrimonio Neto | F58: =+F44+F57 -> 396346812459 | G58: =+G44+G57 -> 400784751067
B60: Las notas que se acompañan forman parte integrante de estos estados financieros.

Sheet ER
A1: =Indice!C3 -> PASFIN S.A.E.C.A. | B1: Indice
A4: ESTADO DE RESULTADOS
A5: =IFERROR(IF(Indice!B6="","Al dia... de mes… de año 2XX2…","Al "&DAY(Indice!B6)&" de "&VLOOKUP(MONTH(Indice!B6),Indice!S:T,2,0)&" de "&YEAR(Indice!B6)),"Al dia... de mes… de año 2XX2…") -> Al 30 de Junio de 2020
A6: Comparativo con igual período del año anterior
A7: (Cifras expresadas en guaraníes)
B9: Nota | C9: 2020-06-30 | D9: 2019-06-30
A10: Ventas | B10: 25 | C10: ='Nota 25'!B15 -> 34871631602 | D10: ='Nota 25'!C15 -> 50639853034
A11: Costo de ventas | B11: 26 | C11: =-'Nota 26'!B13 -> -21268563084 | D11: =-'Nota 26'!C13 -> -19996904486
A12: Utilidad bruta | C12: =C10+C11 -> 13603068518 | D12: =D10+D11 -> 30642948548
A13: Gastos de ventas | B13: 27 | C13: =-'Nota 27'!B30 -> -746747491 | D13: =-'Nota 27'!E30 -> -698722127
A14: Gastos administrativos | B14: 27 | C14: =-'Nota 27'!C30 -> -14471843894 | D14: =-'Nota 27'!F30 -> -19366253286
A15: Resultado operativo | C15: =SUM(C12:C14) -> -1615522867 | D15: =SUM(D12:D14) -> 10577973135
A16: Otros ingresos | B16: 28 | C16: ='Nota 28'!B14 -> 15966505939 | D16: ='Nota 28'!C14 -> 14521462180
A17: Otros gastos | B17: 28 | C17: =-'Nota 28'!B21 -> -16580803619 | D17: =-'Nota 28'!C21 -> -11319510920
A18: Gastos financieros | B18: 29 | C18: =-'Nota 29'!B9 -> -1169138934 | D18: =-'Nota 29'!C9 -> -849574714
A19: Resultado de inversiones en asociadas | B19: 30 | C19: ='Nota 30'!B12 -> 0 | D19: ='Nota 30'!C12 -> 0
A20: Resultados ordinarios antes de impuesto a la renta y participación minoritaria | C20: =SUM(C15:C19) -> -3398959481 | D20: =SUM(D15:D19) -> 12930349681
A21: Resultado participación minoritaria | B21: 31 | C21: ='Nota 31'!B12 -> 0 | D21: ='Nota 31'!C12 -> 0
A22: Resultado ordinario antes del impuesto a la renta | C22: =SUM(C20) -> -3398959481 | D22: =SUM(D20) -> 12930349681
A23: Impuesto a la renta | B23: 32 | C23: =-'Nota 32'!B9 -> 0 | D23: =-'Nota 32'!C9 -> -1573623556
A24: Resultado neto de actividades ordinarias | C24: =C22+C23 -> -3398959481 | D24: =D22+D23 -> 11356726125
A25: Resultado extraordinario neto de impuesto a la renta | B25: 33 | C25: ='Nota 33'!B10 -> 0 | D25: ='Nota 33'!C10 -> 0
A26: Resultado sobre actividades discontinuadas neto de impuesto a la renta | B26: 34 | C26: ='Nota 34'!B12 -> 0 | D26: ='Nota 34'!C12 -> 0
A27: Utilidad/Pérdida neta del año | C27: =C24+C25+C26 -> -3398959481 | D27: =D24+D25+D26 -> 11356726125
A28: Utilidad/Pérdida neta por acción ordinaria | B28: 35 | C28: ='Nota 35'!B10 -> -81314.82012 | D28: ='Nota 35'!C10 -> 271731.017
A31: Las notas que se acompañan forman parte integrante de estos estados financieros.

Sheet EVPN
A1: =Indice!C3 -> PASFIN S.A.E.C.A. | H1: Indice
F4: ESTADO DE EVOLUCIÓN DEL PATRIMONIO NETO
F5: Al 30 de Junio de 2020
F6: Comparativo con igual periodo del año anterior
F7: (Cifras expresadas en guaraníes)
C10: Aporte de los propietarios | H10: Reservas | L10: Ganancias reservadas | S10: Total
C11: Capital suscripto e integrado | D11: Aporte para aumento de capital | F11: Primas de emisión | H11: Reserva de revalúo | J11: Reserva de revalúo técnico | L11: Reserva legal | N11: Reserva facultativa | P11: Resultados acumulados | Q11: Resultados del ejercicio
P12: Total | Q12: Total
A14: Saldo al 31 de Diciembre 2018 | C14: 77703000000 | D14: 0 | F14: 0 | H14: 33918855 | J14: 0 | L14: 3029661490 | N14: 0 | P14: 4166188 | Q14: 23495638570 | S14: =SUM(C14:R14) -> 104266385103
A15: Cambio en política contable | C15: 0 | D15: 0 | F15: 0 | H15: 0 | J15: 0 | L15: 0 | N15: 0 | P15: 0 | Q15: 0
A16: Saldo reestructurado | C16: =SUM(C14:C15) -> 77703000000 | D16: 0 | F16: =SUM(F14:F15) -> 0 | H16: =SUM(H14:H15) -> 33918855 | J16: =SUM(J14:J15) -> 0 | L16: =SUM(L14:L15) -> 3029661490 | N16: =SUM(N14:N15) -> 0 | P16: =SUM(P14:P15) -> 4166188 | Q16: =SUM(Q14:Q15) -> 23495638570 | S16: =SUM(S14:S15) -> 104266385103
A17: Distribución de dividendos s/Acta de Asamblea Ordinaria | C17: 0 | D17: 0 | F17: 0 | H17: 0 | J17: 0 | L17: 0 | N17: 0 | P17: -5052032438 | Q17: 0 | S17: =SUM(C17:Q17) -> -5052032438
A18: Transferencia a resultado acumulado | C18: 0 | D18: 0 | F18: 0 | H18: 0 | J18: 0 | L18: 0 | N18: 0 | P18: 23495638570 | Q18: -23495638570 | S18: =SUM(C18:Q18) -> 0
A19: Integración del capital social | C19: 21049000000 | D19: 0 | F19: 0 | H19: 0 | J19: 0 | L19: 0 | N19: 0 | P19: -14091000000 | Q19: 0 | S19: 6958000000
A20: Reducción del capital social s/Acta de Asamblea General | C20: 0 | D20: 0 | F20: 0 | H20: 0 | J20: 0 | L20: 0 | N20: 0 | P20: 0 | Q20: 0 | S20: 0
A21: Impuesto por distribucion de utilidades | C21: 0 | D21: 0 | F21: 0 | H21: 0 | J21: 0 | L21: 0 | N21: 0 | P21: -252601622 | Q21: 0 | S21: -252601622
A22: Revalúo de activos fijos | C22: 0 | D22: 0 | F22: 0 | H22: 0 | J22: 0 | L22: 0 | N22: 0 | P22: 0 | Q22: 0 | S22: 0
A23: Revalúo técnico | C23: 0 | D23: 0 | F23: 0 | H23: 0 | J23: 0 | L23: 0 | N23: 0 | P23: 0 | Q23: 0 | S23: 0
A24: Reserva facultativa | C24: 0 | D24: 0 | F24: 0 | H24: 0 | J24: 0 | L24: 0 | N24: 4100000000 | P24: -4100000000 | S24: 0
A25: Resultado del año | C25: 0 | D25: 0 | F25: 0 | H25: 0 | J25: 0 | L25: 0 | N25: 0 | P25: 0 | Q25: 11356726125 | S25: 11356726125
A27: Saldo al 30 de Junio de 2019 | C27: =C16+C17+C19+C20+C22+C23+C25 -> 98752000000 | D27: =SUM(D14:D25) -> 0 | F27: =F16+F17+F19+F20+F22+F23+F25 -> 0 | G27: =SUM(G14:G26) -> 0 | H27: =H16+H17+H19+H20+H22+H23+H25 -> 33918855 | J27: =J16+J17+J19+J20+J22+J23+J25 -> 0 | L27: =L16+L17+L19+L20+L22+L23+L25 -> 3029661490 | N27: =N16+N17+N19+N20+N22+N23+N25+N24 -> 4100000000 | P27: =P16+P17+P19+P20+P22+P23+P25+P18+P21+P24 -> 4170698 | Q27: =Q16+Q18+Q19+Q20+Q22+Q23+Q25 -> 11356726125 | S27: =S16+S17+S19+S20+S22+S23+S25+S21+S18+S24 -> 117276477168
A29: Saldo al 31 de Diciembre 2019 | C29: 98910000000 | D29: 0 | F29: 0 | H29: 383681070 | J29: 0 | L29: 3782180262 | N29: 4100000000 | P29: 4170698 | Q29: 14297856674 | S29: =SUM(C29:R29) -> 121477888704
A30: Distribución de dividendos s/Acta de Asamblea General Ordinaria | C30: 0 | D30: 0 | F30: 0 | H30: 0 | J30: 0 | L30: 0 | N30: 0 | P30: 0 | Q30: 0 | S30: =SUM(C30:Q30) -> 0
A31: Transferencia a resultado acumulado | C31: 0 | D31: 0 | F31: 0 | H31: 0 | J31: 0 | L31: 0 | N31: 0 | P31: 14297856674 | Q31: -14297856674 | S31: =SUM(C31:Q31) -> 0
A32: Integración de capital social | C32: 9032000000 | D32: 0 | F32: 0 | H32: 0 | J32: 0 | L32: 0 | N32: 0 | P32: -8988762740 | Q32: 0 | S32: 43237260
A33: Adelanto irrevocable a cuenta de integración de capital | C33: 0 | D33: 10667945 | F33: 0 | H33: 0 | J33: 0 | L33: 0 | N33: 0 | P33: 0 | Q33: 0 | S33: 10667945
A34: Revalúo de activos fijos | C34: 0 | D34: 0 | F34: 0 | H34: 0 | J34: 0 | L34: 0 | N34: 0 | P34: 0 | Q34: 0 | S34: 0
A35: Desafectación de la reserva de revalúo técnico | C35: 0 | D35: 0 | F35: 0 | H35: 0 | J35: 0 | L35: 0 | N35: 0 | P35: 0 | Q35: 0 | S35: 0
A36: Reserva facultativa | C36: 0 | D36: 0 | F36: 0 | H36: 0 | J36: 0 | L36: 0 | N36: 5309093934 | P36: -5309093934 | Q36: 0 | S36: 0
A37: Resultado del año | C37: 0 | D37: 0 | F37: 0 | H37: 0 | J37: 0 | L37: 0 | N37: 0 | P37: 0 | Q37: -3398959481 | S37: -3398959481
A39: Saldo al 30 de Junio de 2020 | C39: =C29+C30+C32+C34+C35+C37 -> 107942000000 | D39: =SUM(D27:D37) -> 10667945 | F39: =F27+F30+F34+F35+F37 -> 0 | H39: =H29+H30+H34+H35+H37 -> 383681070 | J39: =J27+J30+J34+J35+J37 -> 0 | L39: =L29+L30+L34+L35+L37 -> 3782180262 | N39: =N29+N30+N34+N36+N37 -> 9409093934 | P39: =P29+P30+P31+P34+P35+P37+P32+P36 -> 4170698 | Q39: =Q29+Q30+Q31+Q34+Q35+Q37 -> -3398959481 | S39: =S29+S30+S34+S35+S37+S32+S33+S31+S36 -> 118132834428
A42: Las notas que se acompañan forman parte integrante de estos estados financieros.

Sheet EFE
A1: =Indice!C3 -> PASFIN S.A.E.C.A. | B1: Indice
A5: ESTADO DE FLUJOS DE EFECTIVO
A6: =IFERROR(IF(Indice!B6="","Al dia... de mes… de año 2XX2…","Al "&DAY(Indice!B6)&" de "&VLOOKUP(MONTH(Indice!B6),Indice!S:T,2,0)&" de "&YEAR(Indice!B6)),"Al dia... de mes… de año 2XX2…") -> Al 30 de Junio de 2020
A7: Comparativo con igual periodo del año anterior
A8: (Cifras expresadas en guaraníes)
B11: 2020-06-30 | C11: 2019-06-30
A13: FLUJO DE EFECTIVO DE ACTIVIDADES OPERATIVAS
A14: Cobranzas efectuadas a clientes | B14: 34871631602 | C14: 50639853034
A15: Financiación a clientes | B15: 7758984466 | C15: -29154825074
A16: Pagos efectuados a proveedores y empleados | B16: -19022121714 | C16: -21639041690
A17: Pagos de impuesto a la renta | B17: -735608861 | C17: -1321964597
A18: Flujo neto de efectivo de actividades operativas | B18: =SUM(B14:B17) -> 22872885493 | C18: =SUM(C14:C17) -> -1475978327
A20: FLUJO DE EFECTIVO DE ACTIVIDADES DE INVERSIÓN
A21: Adquisición de bienes de uso e intangibles | B21: -439096205 | C21: -289008008
A22: Flujo neto de efectivo de actividades de inversión | B22: =SUM(B21:B21) -> -439096205 | C22: =SUM(C21:C21) -> -289008008
A24: FLUJO DE EFECTIVO DE ACTIVIDADES DE FINANCIACIÓN
A25: (Disminución) Incremento de préstamos | B25: -29685356608 | C25: 1675700870
A26: Aportes de capital recibidos | B26: 53905205 | C26: 6958000000
A27: Dividendos pagados | B27: 0 | C27: -5052032438
A28: Gastos financieros | B28: -1168360887 | C28: -3297047624
A29: Flujo neto de efectivo de actividades de financiamiento | B29: =B25+B26+B28 -> -30799812290 | C29: =C25+C26+C28+C27 -> 284620808
A31: (Disminución) Incremento neto de efectivo | B31: =B29+B22+B18 -> -8366023002 | C31: =C29+C22+C18 -> -1480365527
A32: Efecto estimado de la diferencia de cambio sobre el saldo de efectivo | B32: 762584211 | C32: 414920492
A33: Efectivo al principio del año | B33: 20886433456 | C33: 33970211933
A35: Efectivo al final del periodo | B35: =+SUM(B31:B33) -> 13282994665 | C35: =+SUM(C31:C33) -> 32904766898
A37: Las notas que se acompañan forman parte integrante de estos estados financieros.

Sheet Nota1
A1: =Indice!C3 -> PASFIN S.A.E.C.A. | I1: BG
A4: NOTAS A LOS ESTADOS FINANCIEROS POR EL PERIODO FINALIZADO EL 30 DE JUNIO DE 2020
A5: Balance General: Correspondiente al periodo finalizado el 30 de junio de 2020, presentado en forma comparativa con el ejercicio finalizado el 31 de diciembre de 2019
A6: Estado de Resultados: Correspondiente al periodo finalizado el 30 de junio de 2020, presentado en forma comparativa con el periodo finalizado el 30 de junio de 2019
A9: NOTA 1 – DESCRIPCIÓN DE LA NATURALEZA Y DEL NEGOCIO DE LA COMPAÑÍA
A10: Denominación: | B10: PASFIN S.A.E.C.A.
A11: Domicilio Legal: | B11: Avda. Santa Teresa N° 2106 e/ Aviadores del Chaco y Herminio Maldonado. Torres del Paseo - Torre 1 piso 1. Asunción - Paraguay
A12: Actividad Principal: | B12: Otorgar anticipos sobre créditos provenientes de ventas a plazo, asumir sus riesgos, mediante la compra de facturas, créditos, hipotecas, bonos, valores y documentos en general, realizar descuentos de facturas; gestionar su cobro y prestar asistencia técnica administrativa. Así también podrá dar préstamos en moneda nacional y/o extranjera con o sin intereses, financiamiento en general de toda clase de créditos con cualquiera de las seguridades previstas por la legislación, con o sin garantía.
A13: La entidad fue constituida bajo la forma jurídica de Sociedad Anónima con la denominación de Acciona S.A., según Escritura Pública Nº 45 de fecha 06 de abril del año 2010. En el año 2011 fue modificada con la denominación de PASFIN S.A. según Escritura Publica Nº 40 de fecha 06 de mayo de 2011 fijando domicilio legal en la ciudad de Asunción, Capital del Paraguay. En dicho acto se establece la primera integración de Capital de la S.A. que se realiza de la siguiente manera: a) Con el Capital de Acciona S.A. que posee conforme al Balance General al 31 de Diciembre de 2010, un Capital de Gs. 100.000.000 (Guaraníes cien millones) que fue integrado en su totalidad. El plazo de duración de la Entidad fue establecida en noventa y nueve (99) años y tiene por Objeto ejecutar por cuenta propia y/o terceros, toda clase de actividades comerciales, industriales, mercantiles, de importación, exportación, compra-venta y comercialización de mercaderías y productos, representaciones, comisiones, consignaciones y mandatos comerciales, servicios en general y cualquier acto y operación comercial o civil lícito que se relacione directamente o indirectamente con sus actividades sociales. Según Escritura Pública Nº 45 de fecha 06 de Abril del año 2010, queda formalizada la emisión de 100 Acciones, cada serie de acciones consta de cien (100) acciones de Guaraníes un millón (Gs.1.000.000) y el valor de cada serie emitida es de Guaraníes cincuenta millones (Gs. 50.000.000) que hacen un total de cien millones de guaraníes (Gs. 100.000.000). Según Escritura Pública Nº 40 de fecha 06 del mes de Mayo de 2011, se modifica el Artículo 5º y queda autorizado el aumento de Capital Social a la suma de Mil Millones de Guaraníes (Gs. 1.000.000.000) representado por 1000 acciones nominativas o al portador con derecho a un voto por acción, numeradas del uno al mil con un valor nominal de un millón de guaraníes (Gs. 1.000.000) cada una y distribuidas en 20 series. Mediante Escritura Publica Nº 142, de fecha 25 de Julio de 2014, a través del cual fue aumentado el Capital Social y modificada la denominación Social y el Estatuto Social, quedando con la denominación de Pasfin S.A.E.C.A, queda autorizado el aumento del Capital social a la suma de Gs. 6.000.000.000 (guaraníes seis mil millones), representado por 2000 acciones Ordinarias de Voto Múltiple, con derecho a 5 votos por acción, 2.000 acciones Ordinarias de Voto simple, con un voto por acción y 2.000 acciones Preferidas, sin derecho a voto. Las mismas serán agrupadas en series de Guaraníes Cien Millones (Gs. 100.000.000). Cada serie estará compuesta de cien (100) Acciones. El Capital Social autorizado queda fijado en la suma de seis mil millones de Guaraníes (Gs. 6.000.000.000) y el primer Directorio queda constituido de la siguiente forma: Presidente: Luis Augusto Montanaro Bedoya; Vicepresidente: Alejandro Omar Codas Laterza; Director Titular: Marcelo Campuzano Yaluk; Síndico Titular: Abg. Guillermo Ehrecke; Síndico Suplente: José Santiviago. Según Escritura Pública Nº 55, de fecha 12 de agosto de 2016 se modifica el Artículo 4º del Objeto Social con el fin de adecuarlo a las necesidades de la compañía, queda autorizado el aumento del Capital Social a Gs 50.000.000.000 (guaraníes cincuenta mil millones) representada por 15.000 Acciones Ordinarias de voto múltiple, 15.000 Acciones Ordinarias de voto simple, 2000 Acciones preferidas clase A, 6.000 Acciones preferidas clase B y 12.000 Acciones preferidas clase C.- Según Acta de Asamblea General Extraordinaria N° 14/17 de fecha 25/04/17 se aprueba la modificación de los Estatutos Sociales y el aumento del Capital Social a G. 55.000.000.000 (guaraníes cincuenta y cinco mil millones) formalizado por Escritura N° 25 de fecha 2 de marzo de 2018, inscripta en el Registro Público de Comercio bajo el N° 004, Folio 48-60, de fecha 13 de abril de 2018. Modificación de los Estatutos Sociales, aprobada por Acta de Asamblea General Extraordinaria N° 22/18 de fecha 19/04/18 por la cual se establece el aumento del Capital Social a G. 100.000.000.000 (guaraníes cien mil millones) según Escritura N° 19 de fecha 13/07/2018 Inscripta en el Registro Público de Comercio bajo el N° 05 folio 61 y siguiente de fecha 17/08/2018. Por Escritura Pública N° 4 de fecha 15/02/19 se realizó la transcripción del Acta de Asamblea Extraordinaria N° 17/2019 de fecha 23/01/19, Modificación de Estatuto Social y Emisión de Acciones, aumentado el capital social a Gs. 250.000.000.000 (guaraníes doscientos cincuenta mil millones) inscripta en el Registro Público de Comercio bajo el N° 06 folio 76-87 de fecha 11/04/19 La entidad cierra su año económico el 31 de diciembre.
A44: Inscripción en la Comisión Nacional de Valores: | B44: Inscripta y reconocida como S.A.E.C.A. por Resolución N° 45 E/15. Acta de Directorio N° 53 de fecha 25/08/2015 de la Comisión Nacional de Valores
A48: COMPOSICION DEL CAPITAL
A50: Capital Social Gs. | C50: Capital Emitido | E50: Capital Suscripto | G50: Capital Integrado
C51: en Gs. | E51: en Gs. | G51: en Gs.
A52: Total | B52: 250000000000 | C52: 250000000000 | E52: 107942000000 | G52: 107942000000
A53: Acciones Ordinarias de Votos Múltiples | B53: 50000000000 | C53: 50000000000 | E53: 19906000000 | G53: 19906000000
A54: Acciones Ordinarias Simples | B54: 50000000000 | C54: 50000000000 | E54: 21894000000 | G54: 21894000000
A55: Acciones Preferidas Clase A | B55: 2000000000 | C55: 2000000000 | E55: 2000000000 | G55: 2000000000
A56: Acciones Preferidas Clase B | B56: 6000000000 | C56: 6000000000 | E56: 6000000000 | G56: 6000000000
A57: Acciones Preferidas Clase C | B57: 12000000000 | C57: 12000000000 | E57: 12000000000 | G57: 12000000000
A58: Acciones Preferidas Clase D | B58: 1000000000 | C58: 1000000000 | E58: 1000000000 | G58: 1000000000
A59: Acciones Preferidas Clase E | B59: 4000000000 | C59: 4000000000 | E59: 4000000000 | G59: 4000000000
A60: Acciones Preferidas Clase F | B60: 25000000000 | C60: 25000000000 | E60: 25000000000 | G60: 25000000000
A61: Acciones Preferidas Clase G | B61: 15000000000 | C61: 15000000000 | E61: 11684000000 | G61: 11684000000
A62: Acciones Preferidas Clase H | B62: 3000000000 | C62: 3000000000 | E62: 2977000000 | G62: 2977000000
A63: Acciones Preferidas Clase I | B63: 1100000000 | C63: 1100000000 | E63: 1081000000 | G63: 1081000000
A64: Acciones Preferidas Clase J | B64: 400000000 | C64: 400000000 | E64: 400000000 | G64: 400000000
A65: Acciones Preferidas sin características | B65: 80500000000 | C65: 80500000000 | E65: - | G65: -

Sheet Nota 2
A1: =Indice!C3 -> PASFIN S.A.E.C.A. | I1: BG
A4: NOTA 2 - RESUMEN DE LAS PRINCIPALES POLÍTICAS CONTABLES
A6: a. Bases de preparación de los Estados Financieros
A7: Los estados financieros se han preparado siguiendo los criterios de las Normas de Información Financiera (NIF) emitidas por el Consejo de Contadores Públicos del Paraguay sobre la base de costos históricos, excepto para el caso de activos y pasivos en moneda extranjera y las propiedades, planta y equipo según se explica en los puntos c ) y k), y no reconocen en forma integral los efectos de la inflación sobre la situación patrimonial y financiera de la sociedad, sobre los resultados de sus operaciones y los flujos de efectivo, en atención a que la corrección monetaria no constituye una práctica contable obligatoria en el Paraguay.
A8: Algunas cifras correspondientes al año terminado el 31 de diciembre de 2019 fueron reclasificadas en los presentes estados financieros con el fin de facilitar su comparación.
A10: b. Uso de estimaciones contables
A11: La preparación de los presentes estados financieros requiere que la Gerencia de la sociedad realice estimaciones y evaluaciones que afectan el monto de los activos y pasivos registrados y contingentes, como así también los ingresos y egresos registrados en el ejercicio. Los resultados reales futuros pueden diferir de las estimaciones y evaluaciones realizadas a la fecha de preparación de los presentes estados financieros.
A13: c. Moneda extranjera
A14: Los activos y pasivos en moneda extranjera se valúan a la cotización vigente al cierre de los estados financieros conforme a la publicación efectuada por la Administración Tributaria.
A15: Las diferencias de cambio originadas por fluctuaciones en los tipos de cambio producidos entre las fechas de concertación de las operaciones y su liquidación o valuación al cierre del ejercicio, son reconocidas en resultados.
C17: 2020-06-30 | G17: 2019-12-01
B18: Indicar moneda | C18: Simbología según ISO 4217 | D18: G. | F18: Indicar moneda | G18: Simbología según ISO 4217 | H18: G.
A19: Activos | B19: Dólares Americanos | C19: USD | D19: 1.196494942e+11 | F19: Dólares Americanos | G19: USD | H19: 1.261853548e+11
A21: Pasivos | B21: Dólares Americanos | C21: USD | D21: -94008017708 | F21: Dólares Americanos | G21: USD | H21: -100273300017
A23: Posición neta | D23: =+D19+D21 -> 2.56414765e+10 | H23: =+H19+H21 -> 2.591205483e+10
A25: A la fecha de emisión de estos estados financieros, el tipo de cambio de la moneda extranjera Dólares Americanos varió en un 5% con respecto al vigente al 31 de diciembre de 2019. | L25: TC al 31/12/19 | M25: tc al 30/06/2020 | N25: Variacion | O25: %
K26: c | L26: 6442.33 | M26: 6793.79 | N26: =M26-L26 -> 351.46 | O26: =+N26/L26 -> 0.05455479617
A27: El detalle de las cotizaciones de la moneda extranjera operada por la sociedad es el siguiente: | K27: v | L27: 6463.95 | M27: 6820.47 | N27: =+M27-L27 -> 356.52 | O27: =+N27/L27 -> 0.0551551296
C29: 2020-06-30 | G29: 2019-12-01
C30: Cotización en Gs. | G30: Cotización en Gs.
B31: Indicar moneda | C31: Compra | D31: Venta | F31: Indicar moneda | G31: Compra | H31: Venta
B32: Dólares Americanos | C32: 6793.79 | D32: 6820.47 | F32: Dólares Americanos | G32: 6442.33 | H32: 6463.95
A34: d. Efectivo y equivalentes de efectivo
A35: Se considerarán dentro del concepto de efectivo los saldos en efectivo, disponibilidades en cuentas bancarias y toda inversión de muy alta liquidez, con vencimiento originalmente pactado no superior a tres meses.
A37: e. Inversiones
A38: Las inversiones temporales se valúan de acuerdo a los siguientes criterios de valuación:  Colocaciones financieras en moneda local: a su valor nominal más los intereses devengados al cierre del año/período. Ver Nota 4  Colocaciones financieras en moneda extranjera: a su valor de cotización al cierre del año/período más intereses devengados a ese momento. Ver Nota 4  Las inversiones no corrientes en sociedades donde no se ejerce el control, se valúan a su valor patrimonial proporcional. Ver Nota 8
A39: Observación: En caso de la existencia de saldos y transacciones con partes relacionadas, la información que corresponda a ser expuesta por la sociedad, se ajustará a lo requerido por la Norma de Información Financiera N° 7 Revelaciones de partes relacionadas.
A41: f. Previsión para cuentas de dudoso cobro/incobrables
A42: Las previsiones para cuentas de dudoso cobro se determinan mensualmente sobre la base del estudio de la cartera de créditos realizado con el objeto de determinar la porción no recuperable de las cuentas a cobrar. La entidad se rige por la siguiente política de constitución de previsiones:
A43: Política de previsiones vigente al cierre de los estados financieros:
A44: La sociedad constituirá dos tipos de previsiones, primeramente, las previsiones por tramo las cuales estarán ligadas a los días de mora de la operación o a su clasificación RRR. Segundo, las previsiones genéricas.
A45: Las previsiones son calculados sobre la totalidad del saldo de la operación y no así de la cuota vencida.
B46: TABLA DE PREVISIONES
B47: PREVISIÓN | D47: % DE PREVISIÓN | E47: CATEGORÍA CLIENTE
B48: de 1 - 30 días de mora | D48: 0.5% | E48: 1a
B49: de 31 - 60 días de mora. | D49: 0.015 | E49: 1b
B50: De 61 a 90 días de mora | D50: 0.05 | E50: 2
B51: de 91 - 120 días de mora. | D51: 0.25 | E51: 3
B52: de 121 - 180 días de mora. | D52: 0.5 | E52: 4
B53: de 181 - 270 días de mora. | D53: 0.75 | E53: 5
B54: superiores a 271 días de mora | D54: 1 | E54: 6
A56: Previsiones por tramo
A57: Operaciones RRR: Las operaciones RRR se previsionarán según la categoría crediticia del cliente.
A59: Previsiones genéricas
A60: Se constituirán adicionalmente previsiones genéricas las cuales deberán representar al menos 2,5% de la cartera vigente no debiendo superar el 15% de la cartera total.
A62: Previsiones subjetivas
A63: Cuando existan operaciones reclasificadas por motivos subjetivos, se previsionarán según la categoría crediticia del cliente definida en la tabla de previsiones.
A65: g. Activos disponibles para la venta
A66: Los activos disponibles para la venta representan bienes muebles o inmuebles recibidos en recuperación de créditos designados para la venta. Los mismos se valúan, sin amortizar, al menor valor entre el valor del crédito recuperado y el valor de mercado de los mismos.
A68: h. Propiedades, planta y equipo
A69: Las propiedades, planta y equipo se exponen a su costo histórico ajustado por el coeficiente de revalúo emitido por la Administración Tributaria, menos la correspondiente depreciación acumulada. El incremento neto por la re-expresión se acredita a la respectiva reserva patrimonial, cuyo saldo puede ser utilizado únicamente para aumentar el capital.
A70: El costo de las mejoras que extienden la vida útil de los bienes o aumentan su capacidad productiva es imputado a las cuentas respectivas del activo. Los gastos de mantenimiento son cargados a resultados.
A71: La depreciación es calculada por el método de línea recta conforme a la vida útil definida por la Administración Tributaria.
A73: i. Intangibles
A74: Los intangibles se exponen a su costo incurrido menos las correspondientes amortizaciones acumuladas al cierre del año.
A75: Las amortizaciones son calculadas por el método de línea recta y son reconocidas en los resultados del año.
A77: j. Reconocimiento de ingresos y egresos
A78: Los ingresos y egresos son reconocidos en función de su devengamiento.
A80: k. Impuesto a la renta
A81: El impuesto a la renta que se carga a los resultados del año se basa en la utilidad contable antes de este concepto, ajustada por las partidas que la ley incluye o excluye para la determinación de la utilidad gravable a la que se aplica la tasa legal vigente del 10% del impuesto y por el reconocimiento del cargo o el ingreso originado por la aplicación del impuesto diferido, si los hubiere.
A82: De acuerdo a la Ley 6380/19 la distribución de dividendos y utilidades está sujeta a una retención del 8% en concepto del Impuesto a los Dividendos y a las Utilidades (IDU) a personas físicas o jurídicas domiciliadas en el país, mientras que la tasa será del 15% cuando se tratase de no domiciliados. Excepcionalmente durante el presente año las ganancias acumuladas generadas en ejercicios anteriores y que no fueron capitalizadas ni distribuidas, podrán ser distribuidas y abonar sobre el monto determinado una tasa única y extraordinaria del 5% cuando sus socios y accionistas residan en el país y del 10% en caso de residentes en el exterior.
A83: El impuesto diferido es calculado utilizando el método del estado de situación basado en el balance general, determinado a partir de las diferencias temporarias entre los importes contables de activos y pasivos y los importes utilizados para fines fiscales. El importe de impuesto diferido calculado está basado en la forma esperada de realización o liquidación de los importes contables de activos y pasivos, utilizando la tasa de impuesto aprobada a la fecha de los estados financieros.
A84: Un activo por impuesto diferido es reconocido solamente hasta el importe que es probable que futuras ganancias imponibles estarán disponibles, contra cuyos respectivos impuestos, el activo pueda ser utilizado.
A87: Observación: Cambios en políticas contables y su efecto sobre los estados financieros, como así también las modificaciones o ajustes de la información de ejercicios anteriores deben exponerse conforme a lo requerido por la Norma de Información Financiera N° 6 Utilidad o pérdida neta por el período, errores fundamentales y cambios en políticas contables

Sheet Nota 3
A1: PASFIN S.A.E.C.A. | E1: BG
A4: NOTA 3 - EFECTIVO Y EQUIVALENTE DE EFECTIVO
A5: (Cifras expresadas en guaraníes)
A6: La composición de la cuenta es la siguiente:
A8: Concepto | C8: 2020-06-01 | D8: 2019-12-01
A9: Financieras Locales - Moneda local Guaraníes | C9: 5009292967 | D9: 15632861623
A10: Bancos Locales - Moneda extranjera Dólares | C10: 4971218802 | D10: 397648569
A11: Bancos Locales - Moneda local Guaraníes | C11: 2851625235 | D11: 1158376918
A12: Caja - Moneda extranjera Dólares | C12: 316230543 | D12: 397472434
A13: Financieras Locales - Moneda extranjera Dólares | C13: 117170118 | D13: 3249041412
A14: Caja - Moneda local Guaraníes | C14: 13479500 | D14: 51032500
A15: Recaudaciones a depositar - Moneda local Guaraníes | C15: 3977500 | D15: 0
A16: Total | C16: =SUM($C$9:C15) -> 13282994665 | D16: =SUM($D$9:D15) -> 20886433456

Sheet Nota 4
A1: =Indice!C3 -> PASFIN S.A.E.C.A. | D1: BG
A4: NOTA 4 - INVERSIONES TEMPORALES
A5: (Cifras expresadas en guaraníes)
A6: La composición de la cuenta es la siguiente:
A8: Corriente
A10: Concepto | B10: 2020-06-30 | C10: 2019-12-01
A11: Inversiones en Mercado Bursatil Local - Moneda Local Guaraníes | B11: 6041877127 | C11: 0
A12: Inversiones en Titulos del Sistema Financiero Local - Moneda Local Guaraníes | B12: 155000000 | C12: 45000000
A13: Inversiones en Mercado Bursatil Local - Moneda Extranjera Dólares | B13: 577200 | C13: 0
A14: Total | B14: =SUM($B$11:B13) -> 6197454327 | C14: =SUM($C$11:C13) -> 45000000
A17: No corriente
A19: Concepto | B19: 2020-06-30 | C19: 2019-12-31
A20: Inversiones en Titulos del Sistema Financiero Local - Moneda Local Guaraníes | B20: 210000000 | C20: 320000000
A21: Total | B21: 210000000 | C21: 320000000

Sheet Nota 5
A1: =Indice!C3 -> PASFIN S.A.E.C.A. | F1: BG
A4: NOTA 5 – CARTERA DE CRÉDITOS
A5: (Cifras expresadas en guaraníes) | F5: ANEXO C
F6: COMPOSICION DE LA CARTERA DE CRÉDITOS AL 30/06/2020
A7: Corriente | F7: SITUACION | G7: MONTO EN G. | H7: PREVISIONES
A8: La cartera de créditos a corto plazo se integra como sigue: | H8: IMPORTE EN G. | I8: % PREVISIONES S/ CARTERA
F9: A. Total Cartera no Vencida | G9: 263734405695 | H9: 8255233609 | I9: 0.0313
A10: Concepto | C10: 2020-06-30 | D10: 2019-12-31 | F10: B. Total Cartera Vencida | G10: 127707678086 | H10: 42395617691 | I10: 0.332
A11: Deudores por ventas locales | B11: Moneda Local Guaraníes | C11: 1.76841803e+11 | D11: 219374944052 | F11: Composición Cartera Vencida
A12: Deudores por ventas locales | B12: Moneda Extranjera Dólares | C12: 8.607601662e+10 | D12: 103618178542 | F12: Normal | G12: 57673696400 | H12: 4180244173 | I12: 0.0725
A13: Menos: Intereses a Vencer | C13: -18028726804 | D13: -8499918039 | F13: En Gestión de Cobro A | G13: 43443454984 | H13: 13596445985 | I13: 0.313
A14: Menos: Previsiones | C14: -8880770263 | D14: -17860610742 | F14: En Gestión de Cobro B | G14: 3302460594 | H14: 1330861425 | I14: 0.403
A15: Total | C15: =+SUM($C$11:C14) -> 236008322586 | D15: =+SUM($D$11:D14) -> 296632593813 | F15: En Gestión de Cobro Judicial | G15: 23288066108 | H15: 23288066108 | I15: 1
A17: No Corriente | F17: TOTAL DE LA CARTERA DE CREDITOS (A+B) | G17: =G9+G10 -> 391442083781
A18: Las cartera de créditos a largo plazo se integra como sigue:
F19: (-) TOTAL DE PREVISIONES | G19: =-H9-H10 -> -50650851300
A20: Concepto | C20: 2020-06-30 | D20: 2019-12-31
A21: Deudores por ventas locales | B21: Moneda Local Guaraníes | C21: 1.190538063e+11 | D21: 85777534899 | F21: TOTAL NETO DE LA CARTERA DE CRÉDITOS | G21: =G17+G19 -> 340791232481
A22: Deudores por ventas locales | B22: Moneda Extranjera Dólares | C22: 2.690203599e+10 | D22: 17346074412
A23: Deudores en gestión judicial | B23: Moneda Local Guaraníes | C23: 22108554241 | D23: 6411554381 | F23: OBSERVACIONES
A24: Deudores en gestión judicial | B24: Moneda Extranjera Dólares | C24: 1179511867 | D24: 88528179.62 | F24: CRITERIOS DE CLASIFICACION UTILIZADOS
A25: Menos: Intereses a vencer | C25: -22690917497 | D25: -31928991160 | F25: Normal | G25: De 1 a 90 días de atraso
A26: Menos Previsiones | C26: -41770081037 | D26: -25777077578 | F26: En Gestión de Cobro A | G26: De 91 a 270 días de atraso
A27: Total | C27: =+SUM($C$21:C26) -> 104782909895 | D27: =+SUM($D$21:D26) -> 51917623134 | F27: En Gestión de Cobro B | G27: Superiores a 270 días de atraso
F28: En Gestión de Cobro Judicial | G28: Superiores a 270 días de atraso judicializados

Sheet Nota 6
A1: =Indice!C3 -> PASFIN S.A.E.C.A. | D1: BG
A4: NOTA 6 - OTROS CRÉDITOS
A5: (Cifras expresadas en guaraníes)
A6: El rubro de otros créditos se compone como sigue:
A8: Corriente
A10: Concepto | B10: 2020-06-30 | C10: 2019-12-31
A11: Cheques en garantía redescontados | B11: 4409927761 | C11: 0
A12: Cargos Diferidos | B12: 1250000002 | C12: 0
A13: Anticipo Impuesto a la Renta | B13: 735608861 | C13: 735608861
A14: Deudores varios | B14: 538584150 | C14: 1463085597
A15: Cheques Diferidos | B15: 400000000 | C15: 761058250
A16: Anticipos a proveedores | B16: 107093938 | C16: 90599420
A17: Garantía de Alquiler | B17: 59255436 | C17: 56190003
A18: Gastos pagados por adelantado | B18: 15491924 | C18: 14991541
A19: Total | B19: =SUM(B11:B18) -> 7515962072 | C19: =SUM(C11:C18) -> 3121533672
A21: No corriente
A23: Concepto | B23: 2020-06-30 | C23: 2019-12-31
A24: Fondo de Garantia Procard | B24: 38000000 | C24: 38000000
A25: Total | B25: =SUM(B24) -> 38000000 | C25: =SUM(C24) -> 38000000

Sheet Nota 7
A1: =Indice!C3 -> PASFIN S.A.E.C.A. | D1: BG
A4: NOTA 7 – INVENTARIOS
A5: (Cifras expresadas en guaraníes)
A6: Los bienes de cambio están compuestos de la siguiente manera:
A8: Concepto | B8: 2020-06-30 | C8: 2019-12-31
A9: Mercaderías
A10: Productos terminados
A11: Productos en proceso
A12: Materia prima
A13: (nuevas cuentas a incluir)
A14: (-) Previsión para desvalorización y deterioro de inventario
A15: Total | B15: =SUM(B9:B12) -> 0 | C15: =SUM(C9:C12) -> 0

Sheet Nota 8
A1: =Indice!C3 -> PASFIN S.A.E.C.A. | D1: BG
A4: Nota 8 - INVERSIONES EN ASOCIADAS
A5: (Cifras expresadas en guaraníes)
A6: Las inversiones en sociedades donde no se ejerce control se describen a continuación
A7: Periodo | B7: 2020-06-30 | C7: 2019-12-01
A8: Total Inversión | B8: 150000000 | C8: 150000000
A10: a) Datos sobre la sociedad:
A12: Nombre de Sociedad | B12: RUC | C12: Cantidad de acciones | D12: Al 30/06/2020 | F12: Al 31/12/2019
D13: Total Patrimonio neto | E13: Total del resultado | F13: Total Patrimonio neto | G13: Total del resultado
A14: Buró de Información Comercial S.A. (BIC S.A.) | B14: 80090066-9 | C14: 2.500 acciones serie A | D14: 3394561122 | E14: 214230041 | F14: 3119055816 | G14: 228809924
C15: 1.630 acciones serie B
A18: b) Datos sobre la inversión:
A20: Cantidad de acciones | B20: Participación sobre los votos (%) | C20: Total Inversión (en G.) | D20: Participación sobre el Patrimonio Neto al 30/06/2020 (%) | E20: Total valuación patrimonial proporcional al 30/06/2020 | F20: Resultado sobre inversiones al 30/06/2020
A21: 150 | B21: 0.0389 | C21: 150000000 | D21: =C21/D14 -> 0.04418833381 | E21: =D21*D14 -> 150000000 | F21: =E14*D21 -> 9466468.564

Sheet Nota 9
A1: =Indice!C3 -> PASFIN S.A.E.C.A. | C1: BG
A4: NOTA 9 - PROPIEDADES, PLANTA Y EQUIPO - NETO
A5: (Cifras expresadas en guaraníes) | J5: -1
A7: Rubro | B7: Costo histórico revaluado al inicio del año | C7: Adquisiciones | D7: Bajas | E7: Revalúo del año | F7: Valor de origen revaluado al final del año | G7: Depreciación acumulada revaluada al inicio del año | H7: Depreciación del año | I7: Bajas de depreciaciones acumuladas | J7: Revalúo depreciación acumulada del año | K7: Depreciación acumulada revaluada al final del año | L7: Valor neto contable
L8: 2020-06-30 | M8: 2019-12-31
A9: Muebles y útiles | B9: 638418703 | C9: =32740910+47003426 -> 79744336 | D9: 0 | E9: 0 | F9: =B9+C9-D9+E9 -> 718163039 | G9: -66223300 | H9: -30467203 | I9: 0 | J9: 0 | K9: =+G9+H9+I9+J9 -> -96690503 | L9: =+F9+K9 -> 621472536 | M9: 572195403
A10: Equipos informáticos | B10: 526766027 | C10: =31676363+3318182 -> 34994545 | D10: 0 | E10: 0 | F10: =B10+C10-D10+E10 -> 561760572 | G10: -229651102 | H10: -47925436 | I10: 0 | J10: 0 | K10: =+G10+H10+I10+J10 -> -277576538 | L10: =+F10+K10 -> 284184034 | M10: 297114925
A11: Rodados | B11: 163619629 | C11: 0 | D11: 0 | E11: 0 | F11: =B11+C11-D11+E11 -> 163619629 | G11: -73504974 | H11: -9987581 | I11: 0 | J11: 0 | K11: -83492555 | L11: 80127074 | M11: 90114655
A12: Herramientas | B12: 286840 | C12: 0 | D12: 0 | E12: 0 | F12: 286840 | G12: -57368 | H12: -28684 | I12: 0 | J12: 0 | K12: -86052 | L12: 200788 | M12: 229472
A13: Equipos de comunicación | B13: 54203388 | C13: 0 | D13: 0 | E13: 0 | F13: 54203388 | G13: -10666132 | H13: -5333066 | I13: 0 | J13: 0 | K13: =+G13+H13+I13+J13 -> -15999198 | L13: 38204190 | M13: 43537256
A14: Equipos de seguridad | B14: 256311832 | C14: 4800000 | D14: 0 | E14: 0 | F14: 261111832 | G14: -51262366 | H14: -25631183 | I14: 0 | J14: 0 | K14: -76893549 | L14: 184218283 | M14: 205049466
A15: Otros bienes del activo fijo | B15: 67900000 | C15: 0 | D15: 0 | E15: 0 | F15: 67900000 | G15: 0 | H15: 0 | I15: 0 | J15: 0 | K15: 0 | L15: 67900000 | M15: 67900000
A16: Mejoras en propiedad de terceros | B16: 812141759 | C16: 0 | D16: 0 | E16: 0 | F16: 812141759 | G16: -162428352 | H16: -81214176 | I16: 0 | J16: 0 | K16: -243642528 | L16: 568499231 | M16: 649713407
A17: Totales | B17: =SUM(B9:B16) -> 2519648178 | C17: =SUM(C9:C16) -> 119538881 | D17: =SUM(D9:D16) -> 0 | E17: 0 | F17: =SUM(F9:F16) -> 2639187059 | G17: =SUM(G9:G16) -> -593793594 | H17: -200587329 | I17: 0 | J17: 0 | K17: =SUM(K9:K16) -> -794380923 | L17: =SUM(L9:L16) -> 1844806136 | M17: =SUM(M9:M16) -> 1925854584
A19: Observación:
A20: Incluir aclaraciones en los siguientes casos:
A21: 1. Cuando los bienes de uso tienen alguna restricción sobre su utilización, como por ejemplo cuando están garantizando obligaciones. En su caso también hacer referencia a la nota correspondiente.
A22: 2. Cuando exista alguna previsión por desvalorización (“deterioro”), detallando la evolución de la misma en el transcurso del año.
A23: 3. Si se están capitalizando intereses al costo de bienes de uso. En su caso deberá aclararse la tasa utilizada para la capitalización.
A24: Ver adicionalmente Norma de Información Financiera N° 11 Propiedades, planta y equipo

Sheet Nota 10
A1: =Indice!C3 -> PASFIN S.A.E.C.A. | C1: BG
A4: NOTA 10 – ACTIVOS DISPONIBLES PARA LA VENTA
A5: (Cifras expresadas en guaraníes)
A7: Inversiones | B7: 2020-06-30 | C7: 2019-12-31
A8: Bienes muebles recibidos en recupero de créditos | B8: 1752236100 | C8: 2254150782
A9: Bienes inmuebles recibidos en recupero de créditos | B9: 20832405488 | C9: 19505389585
A10: Menos: Previsión sobre bienes inmuebles | B10: -255601191 | C10: -255601191
A11: Total | B11: =SUM(B8:B10) -> 22329040397 | C11: =SUM(C8:C10) -> 21503939176

Sheet Nota 11
A1: =Indice!C3 -> PASFIN S.A.E.C.A. | F1: BG
A4: NOTA 11 – ACTIVOS INTANGIBLES
A5: (Cifras expresadas en guaraníes)
A7: Activos intangibles | B7: 2020-06-30 | C7: 2019-12-31
A8: Licencias de Software | B8: 5101569946 | C8: 4782012622
A9: Menos: Amortización Acumulada | B9: -1117093302 | C9: -541085127
A10: Total | B10: =SUM(B8:B9) -> 3984476644 | C10: =SUM(C8:C9) -> 4240927495

Sheet Nota 12
A1: =Indice!C3 -> PASFIN S.A.E.C.A. | E1: BG
A4: NOTA 12 – GOODWILL
A5: (Cifras expresadas en guaraníes)
A7: Goodwill | B7: 2020-06-30 | C7: 2019-12-31
A11: Total | B11: =SUM(B8:B10) -> 0 | C11: =SUM(C8:C10) -> 0

Sheet Nota 13
A1: =Indice!C3 -> PASFIN S.A.E.C.A. | C1: BG
A4: NOTA 13 – CUENTAS POR PAGAR COMERCIALES
A5: (Cifras expresadas en guaraníes)
A6: Las cuentas por pagar comerciales se componen como sigue:
A8: Corriente | B8: Simbología según ISO 4217 | C8: Indicación de Moneda | D8: 2020-06-30 | E8: 2019-12-31
A9: Proveedores locales | B9: PYG | C9: =IFERROR(VLOOKUP(B9,'Base de Monedas'!A:B,2,0),"") -> Guaraní | D9: 697121272 | E9: 1487070606
A10: Proveedores locales | B10: USD | C10: =IFERROR(VLOOKUP(B10,'Base de Monedas'!A:B,2,0),"") -> Dólar estadounidense | D10: 55527492 | E10: 118520143
A11: Total | D11: =SUM($D$9:D10) -> 752648764 | E11: =SUM($E$9:E10) -> 1605590749

Sheet Nota 14
A1: PASFIN SAECA | E1: BG | L1: BG
A4: NOTA 14 – PRESTAMOS A CORTO Y LARGO PLAZO
A5: (Cifras expresadas en guaraníes)
A7: Corrientes
D8: 2020-06-30 | J8: 2019-12-31
A9: Préstamos de Entidades Financieras Locales | B9: Vencimiento | C9: Símbolo de Moneda | D9: Moneda | E9: Importe | F9: Tipo de Garantía | H9: Vencimiento | I9: Símbolo de Moneda | J9: Moneda | K9: Importe | L9: Tipo de Garantía
A10: Banco Rio S.A.E.C.A | B10: 0 | C10: 0 | D10: 0 | E10: 0 | F10: 0 | H10: 2020 | I10: USD | J10: Dólar estadounidense | K10: 1422069000 | L10: Prenda
A11: Banco Rio S.A.E.C.A | B11: 0 | C11: 0 | D11: 0 | E11: 0 | F11: 0 | H11: 2020 | I11: USD | J11: Dólar estadounidense | K11: 1019083289 | L11: Codeudoria
A12: Banco Rio S.A.E.C.A | B12: 0 | C12: 0 | D12: 0 | E12: 0 | F12: 0 | H12: 2020 | I12: USD | J12: Dólar estadounidense | K12: 707512490 | L12: Codeudoria
A13: Banco Rio S.A.E.C.A | B13: 0 | C13: 0 | D13: 0 | E13: 0 | F13: 0 | H13: 2020 | I13: USD | J13: Dólar estadounidense | K13: 2262382500 | L13: Prenda
A14: Banco Rio S.A.E.C.A | B14: 0 | C14: 0 | D14: 0 | E14: 0 | F14: 0 | H14: 2020 | I14: USD | J14: Dólar estadounidense | K14: 4201567500 | L14: Prenda
A15: Financiera Finexpar S.A.E.C.A | B15: 2020 | C15: USD | D15: Dólar estadounidense | E15: 3468219635 | F15: Sola firma | H15: 2020 | I15: USD | J15: Dólar estadounidense | K15: 3286928659 | L15: Sola firma
A16: Financiera Finexpar S.A.E.C.A | B16: 2020 | C16: USD | D16: Dólar estadounidense | E16: 3468219635 | F16: Sola firma | H16: 2020 | I16: USD | J16: Dólar estadounidense | K16: 3286928659 | L16: Sola firma
A17: Financiera Finexpar S.A.E.C.A | B17: 2020 | C17: USD | D17: Dólar estadounidense | E17: 6026578029 | F17: Endoso solidario | H17: 2020 | I17: USD | J17: Dólar estadounidense | K17: 8831044111 | L17: Endoso solidario
A18: Financiera Finexpar S.A.E.C.A | B18: 2020 | C18: PYG | D18: Guaraní | E18: 557500800 | F18: Endoso solidario | H18: 2020 | I18: PYG | J18: Guaraní | K18: 4469370252 | L18: Endoso solidario
A19: Financiera Finexpar S.A.E.C.A | B19: 2025 | C19: PYG | D19: Guaraní | E19: 112115493 | F19: Prenda | H19: 0 | I19: 0 | J19: 0 | K19: 0 | L19: 0
A20: Banco Interfisa S.A.E.C.A | B20: 2022 | C20: PYG | D20: Guaraní | E20: 1672625570 | F20: Codeudoria | H20: 2022 | I20: PYG | J20: Guaraní | K20: 1666666666 | L20: Codeudoria
A21: Banco Interfisa S.A.E.C.A | B21: 2020 | C21: PYG | D21: Guaraní | E21: 840072492 | F21: Codeudoria | H21: 0 | I21: 0 | J21: 0 | K21: 0 | L21: 0
A22: Fic S.A. de Finanzas | B22: 0 | C22: 0 | D22: 0 | E22: 0 | F22: 0 | H22: 2020 | I22: USD | J22: Dólar estadounidense | K22: 1446087138 | L22: Sola firma
A23: Fic S.A. de Finanzas | B23: 2020 | C23: PYG | D23: Guaraní | E23: 1399881800 | F23: Sola firma | H23: 2020 | I23: PYG | J23: Guaraní | K23: 3555852083 | L23: Sola firma
A24: Fic S.A. de Finanzas | B24: 2020 | C24: USD | D24: Dólar estadounidense | E24: 3835327340 | F24: Sola firma | H24: 2020 | I24: USD | J24: Dólar estadounidense | K24: 3634846889 | L24: Sola firma
A25: Fic S.A. de Finanzas | B25: 2020 | C25: USD | D25: Dólar estadounidense | E25: 2840725755 | F25: Sola firma | H25: 2020 | I25: USD | J25: Dólar estadounidense | K25: 2692235175 | L25: Sola firma
A26: Fic S.A. de Finanzas | B26: 2020 | C26: USD | D26: Dólar estadounidense | E26: 2263215263 | F26: Sola firma | H26: 0 | I26: 0 | J26: 0 | K26: 0 | L26: 0
A27: Banco Bancop S.A. | B27: 2021 | C27: PYG | D27: Guaraní | E27: 12460000 | F27: Codeudoria | H27: 2020 | I27: PYG | J27: Guaraní | K27: 1537583332 | L27: Codeudoria
A28: Banco Bancop S.A. | B28: 2020 | C28: PYG | D28: Guaraní | E28: 2630185000 | F28: Codeudoria | H28: 0 | I28: 0 | J28: 0 | K28: 0 | L28: 0
A29: Financiera El Comercio S.A.E.C.A | B29: 0 | C29: 0 | D29: 0 | E29: 0 | F29: 0 | H29: 2020 | I29: PYG | J29: Guaraní | K29: 3073451427 | L29: Sola firma
A30: Financiera Cefisa S.A.E.C.A | B30: 0 | C30: 0 | D30: 0 | E30: 0 | F30: 0 | H30: 2020 | I30: PYG | J30: Guaraní | K30: 850073327 | L30: Codeudoria
A31: Financiera Cefisa S.A.E.C.A | B31: 0 | C31: 0 | D31: 0 | E31: 0 | F31: 0 | H31: 2020 | I31: USD | J31: Dólar estadounidense | K31: 3883197666 | L31: Codeudoria
A32: Financiera Cefisa S.A.E.C.A | B32: 0 | C32: 0 | D32: 0 | E32: 0 | F32: 0 | H32: 2020 | I32: USD | J32: Dólar estadounidense | K32: 3213005467 | L32: Endoso solidario
A33: Financiera Cefisa S.A.E.C.A | B33: 2021 | C33: USD | D33: Dólar estadounidense | E33: 2039694360 | F33: Codeudoria | H33: 0 | I33: 0 | J33: 0 | K33: 0 | L33: 0
A34: Sudameris Bank S.A.E.C.A | B34: 0 | C34: 0 | D34: 0 | E34: 0 | F34: 0 | H34: 2020 | I34: PYG | J34: Guaraní | K34: 263946375 | L34: Codeudoria
A35: Sudameris Bank S.A.E.C.A | B35: 0 | C35: 0 | D35: 0 | E35: 0 | F35: 0 | H35: 2020 | I35: PYG | J35: Guaraní | K35: 175964246 | L35: Codeudoria
A36: Sudameris Bank S.A.E.C.A | B36: 0 | C36: 0 | D36: 0 | E36: 0 | F36: 0 | H36: 2020 | I36: PYG | J36: Guaraní | K36: 348395709 | L36: Codeudoria
A37: Sudameris Bank S.A.E.C.A | B37: 0 | C37: 0 | D37: 0 | E37: 0 | F37: 0 | H37: 2020 | I37: PYG | J37: Guaraní | K37: 592272707 | L37: Codeudoria
A38: Sudameris Bank S.A.E.C.A | B38: 0 | C38: 0 | D38: 0 | E38: 0 | F38: 0 | H38: 2020 | I38: USD | J38: Dólar estadounidense | K38: 1260624802 | L38: Codeudoria
D43: 2020-06-30 | J43: 2019-12-31
A44: Préstamos de Entidades Financieras Locales | B44: Vencimiento | C44: Símbolo de Moneda | D44: Moneda | E44: Importe | F44: Tipo de Garantía | H44: Vencimiento | I44: Símbolo de Moneda | J44: Moneda | K44: Importe | L44: Tipo de Garantía
A45: Sudameris Bank S.A.E.C.A | B45: 0 | C45: 0 | D45: 0 | E45: 0 | F45: 0 | H45: 2020 | I45: USD | J45: Dólar estadounidense | K45: 1061578967 | L45: Codeudoria
A46: Sudameris Bank S.A.E.C.A | B46: 2020 | C46: PYG | D46: Guaraní | E46: 114403884 | F46: Codeudoria | H46: 2020 | I46: PYG | J46: Guaraní | K46: 774066272 | L46: Codeudoria
A47: Sudameris Bank S.A.E.C.A | B47: 2020 | C47: PYG | D47: Guaraní | E47: 73608693 | F47: Codeudoria | H47: 2020 | I47: PYG | J47: Guaraní | K47: 498042637 | L47: Codeudoria
A48: Sudameris Bank S.A.E.C.A | B48: 2020 | C48: PYG | D48: Guaraní | E48: 238038841 | F48: Codeudoria | H48: 2020 | I48: PYG | J48: Guaraní | K48: 920757073 | L48: Codeudoria
A49: Sudameris Bank S.A.E.C.A | B49: 2020 | C49: PYG | D49: Guaraní | E49: 155166063 | F49: Codeudoria | H49: 2020 | I49: PYG | J49: Guaraní | K49: 600197204 | L49: Codeudoria
A50: Sudameris Bank S.A.E.C.A | B50: 2020 | C50: USD | D50: Dólar estadounidense | E50: 244746429 | F50: Codeudoria | H50: 2020 | I50: USD | J50: Dólar estadounidense | K50: 677616590 | L50: Codeudoria
A51: Sudameris Bank S.A.E.C.A | B51: 2020 | C51: USD | D51: Dólar estadounidense | E51: 375987411 | F51: Codeudoria | H51: 2020 | I51: USD | J51: Dólar estadounidense | K51: 1040976292 | L51: Codeudoria
A52: Sudameris Bank S.A.E.C.A | B52: 2021 | C52: USD | D52: Dólar estadounidense | E52: 3369000280 | F52: Codeudoria | H52: 0 | I52: 0 | J52: 0 | K52: 0 | L52: 0
A53: Sudameris Bank S.A.E.C.A | B53: 2021 | C53: USD | D53: Dólar estadounidense | E53: 5182822158 | F53: Prenda | H53: 0 | I53: 0 | J53: 0 | K53: 0 | L53: 0
A54: Sudameris Bank S.A.E.C.A | B54: 2021 | C54: USD | D54: Dólar estadounidense | E54: 979345763 | F54: Codeudoria | H54: 0 | I54: 0 | J54: 0 | K54: 0 | L54: 0
A55: Sudameris Bank S.A.E.C.A | B55: 2021 | C55: USD | D55: Dólar estadounidense | E55: 1880353926 | F55: Codeudoria | H55: 0 | I55: 0 | J55: 0 | K55: 0 | L55: 0
A56: Sudameris Bank S.A.E.C.A | B56: 2021 | C56: USD | D56: dólar estadounidense | E56: 1665183171 | F56: Codeudoria | H56: 0 | I56: 0 | J56: 0 | K56: 0 | L56: 0
A57: Sudameris Bank S.A.E.C.A | B57: 2021 | C57: USD | D57: Dólar estadounidense | E57: 1295889300 | F57: Codeudoria | H57: 0 | I57: 0 | J57: 0 | K57: 0 | L57: 0
A58: Banco BBVA S.A.E.C.A | B58: 0 | C58: 0 | D58: 0 | E58: 0 | F58: 0 | H58: 2020 | I58: PYG | J58: Guaraní | K58: 250000000 | L58: Codeudoria
A59: Banco BBVA S.A.E.C.A | B59: 0 | C59: 0 | D59: 0 | E59: 0 | F59: 0 | H59: 2020 | I59: PYG | J59: Guaraní | K59: 550000003 | L59: Codeudoria
A60: Banco BBVA S.A.E.C.A | B60: 2020 | C60: PYG | D60: Guaraní | E60: 825000000 | F60: Codeudoria | H60: 2020 | I60: PYG | J60: Guaraní | K60: 2200000000 | L60: Codeudoria
A61: Banco BBVA S.A.E.C.A | B61: 2020 | C61: PYG | D61: Guaraní | E61: 500000000 | F61: Codeudoria | H61: 2020 | I61: PYG | J61: Guaraní | K61: 900000000 | L61: Codeudoria
A62: Banco BBVA S.A.E.C.A | B62: 2020 | C62: PYG | D62: Guaraní | E62: 470000002 | F62: Codeudoria | H62: 2020 | I62: PYG | J62: Guaraní | K62: 783333334 | L62: Codeudoria
A63: Banco BBVA S.A.E.C.A | B63: 2020 | C63: PYG | D63: Guaraní | E63: 466666665 | F63: Codeudoria | H63: 2020 | I63: PYG | J63: Guaraní | K63: 733333333 | L63: Codeudoria
A64: Banco BBVA S.A.E.C.A | B64: 2021 | C64: PYG | D64: Guaraní | E64: 1125000000 | F64: Codeudoria | H64: 0 | I64: 0 | J64: 0 | K64: 0 | L64: 0
A65: Banco BBVA S.A.E.C.A | B65: 2021 | C65: PYG | D65: Guaraní | E65: 562500000 | F65: Codeudoria | H65: 0 | I65: 0 | J65: 0 | K65: 0 | L65: 0
A66: Banco BBVA S.A.E.C.A | B66: 2021 | C66: PYG | D66: Guaraní | E66: 516666666 | F66: Codeudoria | H66: 0 | I66: 0 | J66: 0 | K66: 0 | L66: 0
A67: Banco BBVA S.A.E.C.A | B67: 2021 | C67: PYG | D67: Guaraní | E67: 1283333333 | F67: Codeudoria | H67: 0 | I67: 0 | J67: 0 | K67: 0 | L67: 0
A68: Banco Continental S.A.E.C.A | B68: 2021 | C68: PYG | D68: Guaraní | E68: 320918641 | F68: Codeudoria | H68: 2020 | I68: PYG | J68: Guaraní | K68: 243538463 | L68: Codeudoria
A69: Banco Basa | B69: 0 | C69: 0 | D69: 0 | E69: 0 | F69: 0 | H69: 2020 | I69: USD | J69: Dólar estadounidense | K69: 3764824983 | L69: Solidaria
A70: Sub Total | E70: 52811452398 | K70: 72679354620
A72: Intereses préstamos entidades financieras a pagar
A73: Intereses a pagar gs | C73: PYG | D73: Guaraní | E73: 2202635268 | I73: PYG | J73: Guaraní | K73: 1098524980
A74: Intereses a pagar usd | C74: USD | D74: Dólar estadounidense | E74: 1648456713 | I74: USD | J74: Dólar estadounidense | K74: 1696875047
A75: (-) Intereses a Devengar | E75: -2958602385 | K75: -3483330411
A76: Sub Total | E76: 892489596 | K76: -687930384
A78: Total Préstamos con entidades financieras locales | E78: 53703941994 | K78: 71991424236
D85: 2020-06-30 | J85: 2019-12-31
A86: Préstamos de Entidades No Financieras Locales | B86: Vencimiento | C86: Símbolo de Moneda | D86: Moneda | E86: Importe | F86: Tipo de Garantía | H86: Vencimiento | I86: Símbolo de Moneda | J86: Moneda | K86: Importe | L86: Tipo de Garantía
A87: Préstamos con entidades no financieras
A88: LCR S.A.E.C.A 1 | B88: 2020 | C88: PYG | D88: Guaraní | E88: 2008181819 | F88: Sola firma | K88: 0
A89: LCR S.A.E.C.A 2 | B89: 2020 | C89: PYG | D89: Guaraní | E89: 1508876712 | F89: Sola firma | K89: 0
E90: 3517058531
A91: Intereses prestamos con entidades no financieras a pagar
A92: Intereses a pagar | C92: PYG | D92: Guaraní | E92: 170585305 | K92: 0
A93: (-) Intereses a Devengar | E93: -152110232 | K93: 0
A94: Sub Total | E94: 18475073 | K94: =SUM(K92:K93) -> 0
A96: Total Préstamos con entidades no financieras | E96: 3535533604
A98: Otros Préstamos | H98: Otros Préstamos
A99: Otros Prestamos Tomados No Socios | B99: 2026 | C99: PYG | D99: Guaraní | E99: 5857588897 | F99: Sola firma | H99: 2026 | I99: PYG | J99: Guaraní | K99: 8246259772 | L99: Sola firma
A100: Otros Prestamos Tomados No Socios | B100: 2027 | C100: USD | D100: Dólar estadounidense | E100: 5538501074 | F100: Sola firma | H100: 2027 | I100: USD | J100: Dólar estadounidense | K100: 5649447440 | L100: Sola firma
A101: Otros Prestamos Tomados No Socios | B101: 2021 | C101: PYG | D101: Guaraní | E101: 10718000000 | F101: Fideicomiso | H101: 2021 | I101: PYG | J101: Guaraní | K101: 8817000000 | L101: Fideicomiso
A102: Otros Prestamos Tomados No Socios | B102: 2021 | C102: USD | D102: Dólar estadounidense | E102: 9555478470 | F102: Fideicomiso | H102: 2021 | I102: USD | J102: Dólar estadounidense | K102: 5151768150 | L102: Fideicomiso
A103: Otros Prestamos Tomados Socios | B103: 2023 | C103: PYG | D103: Guaraní | E103: 4460740274 | F103: Sola firma | H103: 2023 | I103: PYG | J103: Guaraní | K103: 5280740274 | L103: Sola firma
A104: Otros Prestamos Tomados Socios | B104: 2022 | C104: USD | D104: Dólar estadounidense | E104: 3562091250 | F104: Sola firma | H104: 2022 | I104: USD | J104: Dólar estadounidense | K104: 5009561250 | L104: Sola firma
A105: Sub Total | E105: 39692399965 | K105: 38154776886
A107: Intereses Otros Préstamos
A108: Intereses a pagar No Socios | C108: PYG | D108: Guaraní | E108: 8252094860 | I108: PYG | J108: Guaraní | K108: 9127608312
A109: Intereses a pagar No Socios | C109: USD | D109: Dólar estadounidense | E109: 3150206439 | I109: USD | J109: Dólar estadounidense | K109: 3257944620
A110: (-) Intereses a Devengar No Socios | E110: -8924252923 | K110: -9965627267
A111: Intereses a pagar Socios | C111: PYG | D111: Guaraní | E111: 999236636 | I111: PYG | J111: Guaraní | K111: 1542573176
A112: Intereses a pagar Socios | C112: USD | D112: Dólar estadounidense | E112: 1244409208 | I112: USD | J112: Dólar estadounidense | K112: 1313445024
A113: (-) Intereses a Devengar Socios | E113: -2009383483 | K113: -2303273570
A114: Sub Total | E114: 2712310737 | K114: 2972670295
A115: Préstamos de Entidades en el Exterior
A116: Micro Small & Medium Enterprises Bonds S.A. | B116: 2022 | C116: PYG | D116: Guaraní | E116: 8092568750
A117: Sub Total | E117: 8092568750
A118: Intereses préstamos entidades Financieras del Exterior a pagar
A119: Intereses a pagar | D119: Guaraní | E119: 9231800768 | I119: PYG | J119: Guaraní | K119: 9302641886
A120: (-) Intereses a Devengar | D120: Guaraní | E120: -8062362083 | I120: PYG | J120: Guaraní | K120: -8096101330
A121: Sub Total | E121: 1169438685 | K121: 1206540556
A123: Total Otros Préstamos | E123: 51666718137 | K123: 42333987737
A125: Total Préstamos a Corto Plazo | E125: 108906193735 | K125: 114325411973
A127: No Corrientes
D128: 2020-06-30 | J128: 2019-12-31
A129: Préstamos de Entidades Locales | B129: Vencimiento | C129: Símbolo de Moneda | D129: Moneda | E129: Importe | F129: Tipo de garantía | H129: Vencimiento | I129: Símbolo de Moneda | J129: Moneda | K129: Importe | L129: Tipo de Garantía
A130: Banco Continental S.A.E.C.A | B130: 2021 | C130: PYG | D130: Guaraní | E130: 47185335 | F130: Codeudoria | H130: 2021 | I130: PYG | J130: Guaraní | K130: 182364411 | L130: Codeudoria
A131: Banco Interfisa S.A.E.C.A | B131: 2022 | C131: PYG | D131: Guaraní | E131: 2500000001 | F131: Codeudoria | H131: 2022 | I131: PYG | J131: Guaraní | K131: 3333333334 | L131: Codeudoria
A132: Financiera Cefisa S.A.E.C.A | B132: 2020 | C132: USD | D132: Dólar estadounidense | E132: 948285001 | F132: Codeudoria | K132: 0
A133: Financiera Finexpar S.A.E.C.A | B133: 2025 | C133: PYG | D133: Guaraní | E133: 6409502078 | F133: Prenda | K133: 0
A134: Agencia Financiera de Desarrollo | B134: 2025 | C134: PYG | D134: Guaraní | E134: 6250000000 | F134: Sola Firma | K134: 0
A135: Sub Total | E135: 16154972415 | K135: 3515697745
A137: Intereses préstamos entidades financieras a pagar
A138: Intereses a pagar | C138: PYG | D138: Guaraní | E138: 2856577385 | I138: PYG | J138: Guaraní | K138: 591183932
A139: Intereses a pagar | C139: USD | D139: Dólar estadounidense | E139: 20827806 | I139: 0 | J139: 0 | K139: 0
A140: (-) Intereses a Devengar | C140: PYG | D140: Guaraní | E140: -3581233413 | I140: PYG | J140: Guaraní | K140: -850252915
A141: Sub Total | E141: -703828222 | K141: -259068983
A143: Total Préstamos de Entidades Financieras Locales | E143: 15451144193 | K143: 3256628762
A145: Otros Préstamos
A146: Otros Prestamos Tomados No Socios | B146: 2026 | C146: PYG | D146: Guaraní | E146: 40899916496 | F146: Sola firma | H146: 2026 | I146: PYG | J146: Guaraní | K146: 42206302614 | L146: Sola firma
A147: Otros Prestamos Tomados No Socios | B147: 2027 | C147: USD | D147: Dólar estadounidense | E147: 15580010942 | F147: Sola firma | H147: 2027 | I147: USD | J147: Dólar estadounidense | K147: 13951154079 | L147: Sola firma
A148: Otros Prestamos Tomados No Socios | B148: 2025 | C148: PYG | D148: Guaraní | E148: 8801000000 | F148: Fideicomiso | H148: 2025 | I148: PYG | J148: Guaraní | K148: 10452000000 | L148: Fideicomiso
A149: Otros Prestamos Tomados No Socios | B149: 2024 | C149: USD | D149: Dólar estadounidense | E149: 11417466780 | F149: Fideicomiso | H149: 2024 | I149: USD | J149: Dólar estadounidense | K149: 14724878100 | L149: Fideicomiso
A150: Otros Prestamos Tomados Socios | B150: 2023 | C150: PYG | D150: Guaraní | E150: 4068500000 | F150: Sola firma | H150: 2023 | I150: PYG | J150: Guaraní | K150: 5548500000 | L150: Sola firma
A151: Otros Prestamos Tomados Socios | B151: 2022 | C151: USD | D151: Dólar estadounidense | E151: 8415348244 | F151: Sola firma | H151: 2022 | I151: USD | J151: Dólar estadounidense | K151: 7975460678 | L151: Sola firma
A152: Sub Total | E152: 89182242462 | K152: 94858295471
D163: 2020-06-30 | J163: 2019-12-31
A164: Otros Préstamos | B164: Vencimiento | C164: Símbolo de Moneda | D164: Moneda | E164: Importe | F164: Tipo de garantía | H164: Vencimiento | I164: Símbolo de Moneda | J164: Moneda | K164: Importe | L164: Tipo de Garantía
A165: Préstamos de Entidades en el Exterior
A166: Frontera Capital B.V. | B166: 2024 | C166: PYG | D166: Guaraní | E166: 31482750000 | F166: Sin garantia | H166: 2024 | I166: PYG | J166: Guaraní | K166: 31482750000 | L166: Sin garantia
A167: Micro Small & Medium Enterprises Bonds S.A. | B167: 2022 | C167: PYG | D167: Guaraní | E167: 24277706250 | F167: Sin garantia | H167: 2022 | I167: PYG | J167: Guaraní | K167: 32400000000 | L167: Sin garantia
A168: Sub Total | E168: 55760456250 | K168: 63882750000
A170: Intereses Otros Préstamos
A171: Intereses a pagar No Socios | C171: PYG | D171: Guaraní | E171: 16536405886 | I171: PYG | J171: Guaraní | K171: 18862139122
A172: Intereses a pagar No Socios | C172: USD | D172: Dólar estadounidense | E172: 4615079988 | I172: USD | J172: Dólar estadounidense | K172: 5121847295
A173: (-) Intereses a Devengar No Socios | E173: -21120861931 | K173: -23937511431
A174: Intereses a pagar Socios | C174: PYG | D174: Guaraní | E174: 1074354250 | I174: PYG | J174: Guaraní | K174: 1524964400
A175: Intereses a pagar Socios | C175: USD | D175: Dólar estadounidense | E175: 1766039061 | I175: USD | J175: Dólar estadounidense | K175: 2235356333
A176: (-) Intereses a Devengar Socios | E176: -2840393311 | K176: -3760320733
A177: Sub Total | E177: 30623943 | K177: 46474986
A179: Intereses préstamos entidades Financieras del Exterior a pagar
A180: Intereses a pagar | C180: PYG | D180: Guaraní | E180: 17731423695 | I180: PYG | J180: Guaraní | K180: 22292204681
A181: (-) Intereses a Devengar | C181: PYG | D181: Guaraní | E181: -17731423697 | I181: PYG | J181: Guaraní | K181: -22292204681
A182: Sub Total | E182: -2 | K182: 0
A184: Total Otros Préstamos | E184: 144973322653 | K184: 158787520457
A186: Total Préstamos a Largo Plazo | E186: 160424466846 | K186: 162044149219

Sheet Nota 15
A1: =Indice!C3 -> PASFIN S.A.E.C.A. | D1: BG
A4: NOTA 15 – PORCIÓN CORRIENTE DE LA DEUDA A LARGO PLAZO
A5: (Cifras expresadas en guaraníes)
A7: Porción corriente de la deuda a largo plazo | B7: 2020-06-30 | C7: 2019-12-31
A8: Cuentas por pagar comerciales
A9: Préstamos bancarios
A10: Bonos bursátiles
A11: Intereses bancarios a pagar
A12: Intereses bursatiles a pagar
A13: (nuevas cuentas a incluir)
A14: Total | B14: =SUM($B$8:B13) -> 0 | C14: =SUM($C$8:C13) -> 0

Sheet Nota 16
A1: =Indice!C3 -> PASFIN S.A.E.C.A. | C1: BG
A4: NOTA 16 – REMUNERACIONES Y CARGAS SOCIALES A PAGAR
A5: (Cifras expresadas en guaraníes)
A7: Remuneraciones y cargas sociales a pagar | B7: 2020-06-30 | C7: 2019-12-31
A8: Aportes y retenciones a pagar | B8: 269801406 | C8: 64429974
A9: Aguinaldos a pagar | B9: 101222145 | C9: 23438
A10: Total | B10: =SUM($B$8:B9) -> 371023551 | C10: =SUM($C$8:C9) -> 64453412

Sheet Nota 17
A1: =Indice!C3 -> PASFIN S.A.E.C.A. | C1: BG
A4: NOTA 17 – IMPUESTOS A PAGAR
A5: (Cifras expresadas en guaraníes)
A7: Impuestos a pagar | B7: 2020-06-30 | C7: 2019-12-31
A8: Dirección General de Recaudaciones - IVA a pagar | B8: 738898392 | C8: 601448946
A9: Impuesto a la renta a pagar | B9: 0 | C9: 120632083
A10: Retenciones de impuestos a pagar | B10: 0 | C10: 89189108
A11: Total | B11: =SUM($B$8:B10) -> 738898392 | C11: =SUM($C$8:C10) -> 811270137

Sheet Nota 18
A1: =Indice!C3 -> PASFIN S.A.E.C.A. | D1: BG
A4: NOTA 18 - PROVISIONES
A5: (Cifras expresadas en guaraníes)
A7: Provisiones | B7: 2020-06-30 | C7: 2019-12-31
A8: Honorarios Profesionales a Pagar | B8: 6500000 | C8: 0
A9: Servicios Contratados a Pagar | B9: 2034446 | C9: 0
A10: Servicios Básicos a Pagar | B10: 963030 | C10: 0
A11: Total | B11: =SUM($B$8:B10) -> 9497476 | C11: =SUM($C$8:C10) -> 0

Sheet Nota 19
A1: =Indice!C3 -> PASFIN S.A.E.C.A. | D1: BG
A3: NOTA 19 – OTROS PASIVOS CORRIENTES Y NO CORRIENTES
A4: (Cifras expresadas en guaraníes)
A6: Corriente | B6: 2020-06-30 | C6: 2019-12-31
A7: Cheques en garantía redescontados | B7: 4427246058 | C7: 0
A8: Operaciones pasivas a constituir | B8: 2120394373 | C8: 243918500
A9: Otros pasivos corrientes | B9: 424838063 | C9: 36291374
A10: Anticipos varios | B10: 38770773 | C10: 175776999
A11: Total | B11: =SUM(B7:B10) -> 7011249267 | C11: =SUM(C7:C10) -> 455986873

Sheet Nota 20
A1: =Indice!C3 -> PASFIN S.A.E.C.A. | D1: BG
A4: NOTA 20 – CAPITAL INTEGRADO
A5: (Cifras expresadas en guaraníes)
A7: Concepto | B7: 2020-06-30 | C7: 2019-12-31
A8: Monto Capital Social | B8: 250000000000 | C8: 250000000000
A9: Monto Capital Integrado | B9: 107942000000 | C9: 98910000000
A10: Adelanto irrevocable a cuenta de integración de capital | B10: 10667945 | C10: 0
A11: Cantidad de Acciones | B11: 107942 | C11: 98910
A12: Valor Nominal de Acciones | B12: 1000000 | C12: 1000000
A13: Total Capital Integrado | B13: =+B9 -> 107942000000 | C13: =+C9 -> 98910000000

Sheet Nota 21
A1: =Indice!C3 -> PASFIN S.A.E.C.A. | F1: BG
A4: NOTA 21 – RESERVAS
A5: (Cifras expresadas en guaraníes)
B7: 2020-06-30 | C7: 2019-12-01
A8: a- Reserva de revalúo | B8: 383681070 | C8: 383681070
A9: La cuenta está compuesta por:
A10: Reserva de revalúo fiscal: Al cierre del ejercicio aplicando el coeficiente de revalúo determinado por la Administración Tributaria.
A11: Reserva de revalúo extraordinario: Valuación residual estraordinaria según valor tasación de bienes inmuebles recibidos en recupero de créditos.
A13: b- Reserva legal | B13: 3782180262 | C13: 3782180262
A14: En cumplimiento a lo establecido en el Art. 91° de la Ley 1034/83 del comerciante, la sociedad constituye una reserva legal anual a una tasa del 5% sobre la utilidad del ejercicio. Dicha reserva no deberá superar el 20% del capital suscripto.
A16: c- Reservas facultativas | B16: 9409093934 | C16: 4100000000
A17: Por Acta N° 18/2019 de Asamblea General de Accionistas llevada a cabo en fecha 24 de abril de 2019 fue aprobada la constitución de una reserva para cartera de inversiones por Gs. 4.100.000.000.
A18: Por Acta N° 23/2020 de Asamblea General de Accionistas llevada a cabo en fecha 28 de abril de 2020 fue aprobada la constitución de una reserva adicional por Gs. 5.309.093.934.

Sheet Nota 22
A1: =Indice!C3 -> PASFIN S.A.E.C.A. | F1: BG
A4: NOTA 22 – DIFERENCIA TRANSITORIA POR CONVERSIÓN
A5: (Cifras expresadas en guaraníes)
B7: 2020-06-30 | C7: 2019-12-01
A8: Diferencia transitoria por conversión
A9: Total | B9: =SUM(B8) -> 0 | C9: =SUM(C8) -> 0

Sheet Nota 23
A1: =Indice!C3 -> PASFIN S.A.E.C.A. | F1: BG
A4: NOTA 23 – RESULTADOS ACUMULADOS
A5: (Cifras expresadas en guaraníes)
A7: Concepto | B7: 2020-06-30 | C7: 2019-12-31
A8: Resultado de ejercicios anteriores | B8: 4170698 | C8: 4170698
A9: Resultado del ejercicio actual | B9: -3398959481 | C9: 14297856674
A10: Totales | B10: =SUM($B$8:B9) -> -3394788783 | C10: =SUM($C$8:C9) -> 14302027372

Sheet Nota 24
A1: =Indice!C3 -> PASFIN S.A.E.C.A. | F1: BG
A4: NOTA 24 – INTERÉS MINORITARIO
A5: (Cifras expresadas en guaraníes)
B7: 2020-06-30 | C7: 2019-12-31
A8: Interés Minoritario
A9: Total | B9: =SUM(B8) -> 0 | C9: =SUM(C8) -> 0

Sheet Nota 25
A1: =Indice!C3 -> PASFIN S.A.E.C.A. | E1: ER
A4: NOTA 25 – VENTAS
A5: (Cifras expresadas en guaraníes)
A8: Ventas | B8: 2020-06-30 | C8: 2019-06-30
A10: Ventas Locales
A11: Servicios financieros
A12: Ventas Contado | B12: 11351597928 | C12: 17579982269
A13: Ventas Crédito | B13: 26298745595 | C13: 34275637620
A14: Menos: Devoluciones y descuentos concedidos | B14: -2778711921 | C14: -1215766855
A15: Total | B15: =SUM($B$12:B14) -> 34871631602 | C15: =SUM(C12:C14) -> 50639853034

Sheet Nota 26
A1: =Indice!C3 -> PASFIN S.A.E.C.A. | E1: ER
A4: NOTA 26 - COSTO DE VENTAS
A5: (Cifras expresadas en guaraníes)
A8: Costo de ventas | B8: 2020-06-30 | C8: 2019-06-30
A9: Costos financieros | B9: 20854492398 | C9: 19834015274
A10: Honorarios a Profesionales y Técnicos | B10: 1622930337 | C10: 2033125314
A11: Otras Retribuciones Personales | B11: 0 | C11: 924036048
A12: Menos: Descuentos obtenidos | B12: -1208859651 | C12: -2794272150
A13: Total costo de ventas | B13: =SUM($B$9:B12) -> 21268563084 | C13: =SUM($C$9:C12) -> 19996904486

Sheet Nota 27
A1: =[22]Indice!C1 -> PASFIN S.A.E.C.A. | G1: ER
A4: NOTA 27 - GASTOS
A5: (Cifras expresadas en guaraníes)
A7: El rubro está compuesto de la siguiente forma:
A9: Concepto | B9: 2020-06-30 | E9: 2019-06-30
B10: Gastos de Ventas | C10: Gastos Administrativos | D10: Total | E10: Gastos de Ventas | F10: Gastos Administrativos | G10: Total
A11: Movilidad y viáticos | B11: 0 | C11: 44255673 | D11: =+C11+B11 -> 44255673 | E11: 0 | F11: 37240372 | G11: =+F11+E11 -> 37240372
A12: Gastos de alquiler | B12: 0 | C12: 396434811 | D12: =+C12+B12 -> 396434811 | E12: 0 | F12: 374639716 | G12: =+F12+E12 -> 374639716
A13: Computación y redes | B13: 0 | C13: 192647913 | D13: 192647913 | E13: 0 | F13: 23736380 | G13: 23736380
A14: Gastos por servicios | B14: 0 | C14: 6770450 | D14: 6770450 | E14: 0 | F14: 6533124 | G14: 6533124
A15: Honorarios profesionales y asesoramiento | B15: 0 | C15: 479912379 | D15: 479912379 | E15: 0 | F15: 1568386108 | G15: 1568386108
A16: Impuestos y tasas | B16: 0 | C16: 431353461 | D16: 431353461 | E16: 0 | F16: 135397629 | G16: 135397629
A17: Gastos de reparación y mantenimiento | B17: 0 | C17: 142846833 | D17: 142846833 | E17: 0 | F17: 124588424 | G17: 124588424
A18: Gastos del personal y capacitación | B18: 0 | C18: 150444180 | D18: 150444180 | E18: 0 | F18: 124925457 | G18: 124925457
A19: Seguros pagados | B19: 0 | C19: 14683152 | D19: 14683152 | E19: 0 | F19: 10914484 | G19: 10914484
A20: Otros gastos de operación | B20: 0 | C20: 1637346807 | D20: 1637346807 | E20: 0 | F20: 1733600444 | G20: 1733600444
A21: Remuneraciones de administradores, directores, síndicos y consejo de vigilancia | B21: 0 | C21: 772850102 | D21: 772850102 | E21: 0 | F21: 123867500 | G21: 123867500
A22: Sueldos y Jornales | B22: 673420684 | C22: 1200839811 | D22: 1874260495 | E22: 507729047 | F22: 1012860707 | G22: 1520589754
A23: Contribuciones Sociales | B23: 0 | C23: 287433502 | D23: 287433502 | E23: 0 | F23: 221881378 | G23: 221881378
A24: Gastos de Publicidad y Propaganda | B24: 73326807 | C24: 0 | D24: 73326807 | E24: 190993080 | G24: 190993080
A25: Intereses, multas y recargos impositivos | B25: 0 | C25: 50040443 | D25: 50040443 | E25: 0 | F25: 70680191 | G25: 70680191
A26: Depreciación bienes de uso | B26: 0 | C26: 200587329 | D26: 200587329 | E26: 0 | F26: 0 | G26: 0
A27: Amortización activos intangibles | B27: 0 | C27: 576008175 | D27: 576008175 | E27: 0 | F27: 54225173 | G27: 54225173
A28: Previsiones | B28: 0 | C28: 7877618393 | D28: 7877618393 | E28: 0 | F28: 13719458017 | G28: 13719458017
A29: Donaciones | B29: 0 | C29: 9770480 | D29: 9770480 | E29: 0 | F29: 23318182 | G29: 23318182
A30: Totales | B30: =+SUM($B$11:B29) -> 746747491 | C30: =SUM(C11:C29) -> 14471843894 | D30: =SUM(D11:D29) -> 15218591385 | E30: =SUM(E11:E29) -> 698722127 | F30: =SUM(F11:F29) -> 19366253286 | G30: =SUM(G11:G29) -> 20064975413
D45: =SUM(D33:D43) -> 0
D46: =+D45-D30 -> -15218591385

Sheet Nota 28
A1: =Indice!C3 -> PASFIN S.A.E.C.A. | E1: ER
A4: NOTA 28 - OTROS INGRESOS Y GASTOS
A5: (Cifras expresadas en guaraníes)
A8: Otros ingresos | B8: 2020-06-30 | C8: 2019-06-30
A9: Ingresos por valuación | B9: 14347798349 | C9: 10688824127
A10: Venta de Bienes recibidos en recup. De creditos | B10: 1446476914 | C10: 832279749
A11: Ingresos Diversos | B11: 108211479 | C11: 112665739
A12: Recupero de créditos | B12: 43215562 | C12: 2862407590
A13: Intereses ganados en bancos y financieras | B13: 20803635 | C13: 25284975
A14: Total | B14: =SUM($B$9:B13) -> 15966505939 | C14: =SUM(C9:C13) -> 14521462180
A16: Otros gastos | B16: 2020-06-30 | C16: 2019-06-30
A17: Pérdida por valuación | B17: 13585214138 | C17: 10273903635
A18: Costo de venta de bienes | B18: 1607599337 | C18: 1000156364
A19: Pérdida por quitas sobre créditos | B19: 1381694873 | C19: 45415571
A20: Gastos Diversos | B20: 6295271 | C20: 35350
A21: Total | B21: =SUM($B$17:B20) -> 16580803619 | C21: =SUM(C17:C20) -> 11319510920

Sheet Nota 29
A1: =Indice!C3 -> PASFIN S.A.E.C.A. | E1: ER
A4: NOTA 29 - GASTOS FINANCIEROS
A5: (Cifras expresadas en guaraníes)
A7: Gastos Financieros netos | B7: 2020-06-30 | C7: 2019-06-30
A8: Intereses moratorios bancos y financieras | B8: 1169138934 | C8: 849574714
A9: Total gastos financieros | B9: =SUM($B8:B8) -> 1169138934 | C9: =SUM($C8:C8) -> 849574714

Sheet Nota 30
A1: =Indice!C3 -> PASFIN S.A.E.C.A. | E1: ER
A4: NOTA 30 - RESULTADO DE INVERSIONES EN ASOCIADAS
A5: (Cifras expresadas en guaraníes)
A8: Resultado de inversiones en asociadas | B8: 2020-06-30 | C8: 2019-06-30
A9: (Detallar cuenta)
A12: Total | B12: =SUM($B9:B11) -> 0 | C12: =SUM($C9:C11) -> 0

Sheet Nota 31
A1: =Indice!C3 -> PASFIN S.A.E.C.A. | E1: ER
A4: NOTA 31 - RESULTADO PARTICIPACIÓN MINORITARIA
A5: (Cifras expresadas en guaraníes)
A8: Resultado participación minoritaria | B8: 2020-06-30 | C8: 2019-06-30
A9: (Detallar cuenta)
A12: Total | B12: =SUM($B9:B11) -> 0 | C12: =SUM($C9:C11) -> 0

Sheet Nota 32
A1: =Indice!C3 -> PASFIN S.A.E.C.A. | E1: ER
A4: NOTA 32 - IMPUESTO A LA RENTA
A5: (Cifras expresadas en guaraníes)
A7: Concepto | B7: 2020-06-30 | C7: 2019-06-30
A8: Impuesto a la renta | B8: 0 | C8: 1573623556
A9: Total | B9: =SUM($B8:B8) -> 0 | C9: =SUM($C8:C8) -> 1573623556

Sheet Nota 33
A1: =Indice!C3 -> PASFIN S.A.E.C.A. | E1: ER
A4: NOTA 33 - RESULTADO EXTRAORDINARIO NETO DE IMPUESTO A LA RENTA
A5: (Cifras expresadas en guaraníes)
B7: 2020-06-30 | C7: 2019-06-30
A8: Conceptos
A9: (Detallar)
A10: Total | B10: =SUM($B8:B9) -> 0 | C10: =SUM($C8:C9) -> 0

Sheet Nota 34
A1: =Indice!C3 -> PASFIN S.A.E.C.A. | E1: ER
A4: NOTA 34 - RESULTADO SOBRE ACTIVIDADES DISCONTINUADAS NETO DE IMPUESTO A LA RENTA
A5: (Cifras expresadas en guaraníes)
A7: Resultado sobre actividades discontinuadas neto de impuesto a la renta | B7: 2020-06-30 | C7: 2019-06-30
A9: (nueva cuenta a incluir)
A10: Subtotal
A11: - Impuesto a la renta
A12: Total | B12: =SUM($B8:B11) -> 0 | C12: =SUM($C8:C11) -> 0

Sheet Nota 35
A1: =Indice!C3 -> PASFIN S.A.E.C.A. | C1: ER
A4: NOTA 35- UTILIDAD/PÉRDIDA NETA DEL AÑO Y POR ACCIÓN ORDINARIA
A5: (Cifras expresadas en guaraníes)
A7: Concepto | B7: 2020-06-30 | C7: 2019-06-30
A8: Cantidad de Acciones Ordinarias en Circulación | B8: 41800 | C8: 41794
A9: Utilidad/Pérdida Neta | B9: -3398959481 | C9: 11356726125
A10: Utilidad/Pérdida Neta por Acción Ordinaria | B10: =IFERROR(B9/B8,0) -> -81314.82012 | C10: =IFERROR(C9/C8,0) -> 271731.017
A12: La Sociedad calcula la utilidad/pérdida neta por acción sobre la base de la utilidad/pérdida del año y el total de acciones ordinarias integradas con valor nominal de G. 1.000.000 cada una. Las acciones ordinarias de voto simple tienen derecho a 1 voto, en tanto que las acciones ordinarias de voto múltiple tienen derecho a 5 votos.

Sheet Nota 36
A1: =Indice!C3 -> PASFIN S.A.E.C.A. | E1: Indice
A4: NOTA 36 - ACTIVOS GRAVADOS
A5: (Cifras expresadas en guaraníes)
A7: Los siguientes bienes de propiedad de la Sociedad han sido hipotecados y prendados en garantía de obligaciones financieras.
A9: =IFERROR("Al "&DAY(Indice!B6)&" de "&VLOOKUP(MONTH(Indice!B6),Indice!S:T,2,0)&" de "&YEAR(Indice!B6-365),"Al dia... de mes… de año 2XX1…") -> Al 30 de Junio de 2019
A10: Tipo de Activo | B10: Datos del activo gravado | C10: Tipo de garantía | D10: Importe (indicar moneda) | E10: A favor de
A14: =IFERROR("Al "&DAY(Indice!B6)&" de "&VLOOKUP(MONTH(Indice!B6),Indice!S:T,2,0)&" de "&YEAR(Indice!B6-1),"Al dia... de mes… de año 2XX2…") -> Al 30 de Junio de 2020
A15: Tipo de Activo | B15: Datos del activo gravado | C15: Tipo de garantía | D15: Importe (indicar moneda) | E15: A favor de
A19: Observación: La sociedad revela en la Nota 14 los tipos de garantía por cada obligación financiera y no financiera.

Sheet Nota 37
A1: =Indice!C3 -> PASFIN S.A.E.C.A. | E1: Indice
A4: NOTA 37 - CONTINGENCIAS Y COMPROMISOS
A7: =IFERROR("Al "&DAY(Indice!B6)&" de "&VLOOKUP(MONTH(Indice!B6),Indice!S:T,2,0)&" de "&YEAR(Indice!B6-1)&" no existen situaciones contingentes, ni reclamos que pudieran resultar en la generación de obligaciones para la Sociedad adicionales a las que se presentan en estos estados financieros.","Al … de …………... 20X2 no existen situaciones contingentes, ni reclamos que pudieran resultar en la generación de obligaciones para la Sociedad adicionales a las que se presentan en estos estados financieros.") -> Al 30 de Junio de 2020 no existen situaciones contingentes, ni reclamos que pudieran resultar en la generación de obligaciones para la Sociedad adicionales a las que se presentan en estos estados financieros.

Sheet Nota 38
A1: =[22]Indice!C1 -> PASFIN S.A.E.C.A. | E1: Índice
A4: NOTA 38 - IMPUESTO DIFERIDO
A5: (Cifras expresadas en guaraníes)
A8: 38.1 | B8: Componentes del impuesto a la renta reconocido en el estado de resultados
D10: 2020-06-30 | F10: 2019-06-30
B11: (*) Gasto por impuesto corriente | D11: 0 | F11: 1573623556
B12: (Ingresos) / Gasto por origen y reversión de diferencias temporarias | D12: 0 | F12: 0
B13: Gasto por el impuesto a la renta | D13: =SUM(D11:D12) -> 0 | F13: =SUM(F11:F12) -> 1573623556
A15: 38.2 | B15: Conciliación del gasto por impuesto a la renta y la utilidad contable
D17: 2020-06-30 | F17: 2019-06-30
B18: Ganancia Contable | D18: 0 | F18: 12930349681
B19: (*) Impuesto a la renta | D19: 0 | F19: 1573623556
B20: Efecto fiscal de gastos que no cumplen con los requisitos de documentación | D20: 0 | F20: 0
B21: Gasto fiscal | D21: =SUM(D19:D20) -> 0 | F21: =SUM(F19:F20) -> 1573623556
A23: 38.3 | B23: Activos y pasivos por impuesto a la renta diferido
B25: Los activos correspondientes al impuesto a la renta diferido son atribuibles según el siguiente detalle:
D27: 2020-06-30 | F27: 2019-12-01
D28: Activo | F28: Activo
B29: ACTIVO
B30: Activo Corriente
B31: Cartera de créditos | D31: 2421856 | F31: 2421856
B32: Activo No Corriente
B33: Cartera de créditos | D33: 423881 | F33: 423881
B34: Activo por impuesto diferido | D34: =SUM(D31:D33) -> 2845737 | F34: =SUM(F31:F33) -> 2845737
A37: 38.4 | B37: Movimiento durante el año de las diferencias temporarias
D39: Saldos a Dic-19 | E39: Reconocido en Resultados | F39: Saldos a Jun-20
B40: Activo neto por impuesto diferido | D40: 2845737 | E40: 0 | F40: =+D40+E40 -> 2845737
D43: Saldos a Dic-18 | E43: Reconocido en Resultados | F43: Saldos a Jun-19
B44: Activo neto por impuesto diferido | D44: 4007174 | E44: 0 | F44: =+D44+E44 -> 4007174

Sheet Nota 39
A1: =Indice!C3 -> PASFIN S.A.E.C.A. | E1: Indice
A5: NOTA 39 - HECHOS POSTERIORES
A7: En fecha 21 de abril de 2020 la Sociedad ha firmado un acuerdo estratégico de fusión con las entidades CREDICENTRO S.A.E.C.A. y LCR S.A.E.C.A.
A8: En fecha 11 de mayo de 2020 se llevó a cabo la Asamblea General Extraordinaria N° 24/2020 por la cual se aprueba el compromiso previo de fusión por absorción por parte de la firma CREDICENTRO S.A.E.C.A. en carácter de absorbente y PASFIN S.A.E.C.A y LCR S.A.E.C.A. en carácter de absorbidas como asimismo el Balance Especial de Fusión.

Sheet Nota 40
A1: =Indice!C3 -> PASFIN S.A.E.C.A. | C1: Indice
A4: NOTA 40 - SALDOS Y TRANSACCIONES CON PARTES RELACIONADAS
A5: (Cifras expresadas en guaraníes)
A7: Conceptos | B7: 2020-06-30 | C7: 2019-12-01
A8: ACTIVO
A9: Cartera de créditos | B9: 13606831875 | C9: 11289171013
A10: Otros créditos | B10: 46109337 | C10: 60769479
A11: Propiedades, planta y equipo/Bienes de uso, neto | B11: 21818182 | C11: 0
A12: Total Activo | B12: =SUM(B9:B11) -> 13674759394 | C12: =SUM(C9:C11) -> 11349940492
A13: PASIVO
A14: Préstamos | B14: 87439410195 | C14: 87597362804
A15: Cuentas por pagar comerciales | B15: 0 | C15: 749744146
A16: Total Pasivo | B16: =SUM(B14:B15) -> 87439410195 | C16: =SUM(C14:C15) -> 88347106950
A21: INGRESOS | B21: 2020-06-30 | C21: 2019-06-30
A22: Ventas | B22: 5584495900 | C22: 10782920135
A23: Otros ingresos | B23: 20025588 | C23: 0
A24: Total Ingresos | B24: =SUM(B22:B23) -> 5604521488 | C24: =SUM(C22) -> 10782920135
A26: EGRESOS
A27: Costo de ventas | B27: 7980828911 | C27: 8557298400
A28: Gastos administrativos | B28: 1635152121 | C28: 624128314
A29: Gastos financieros | B29: 1097788218 | C29: 809596772
A30: Total Egresos | B30: =SUM(B27:B29) -> 10713769250 | C30: =SUM(C27:C29) -> 9991023486

Sheet Base de Monedas
A1: PYG | B1: Guaraní | C1: Índice
A2: USD | B2: Dólar estadounidense
A3: EUR | B3: Euro
A4: AED | B4: Dírham de los Emiratos Árabes Unidos
A5: AFN | B5: Afgani
A6: ALL | B6: Lek
A7: AMD | B7: Dram armenio
A8: ANG | B8: Florín antillano neerlandés
A9: AOA | B9: Kwanza
A10: ARS | B10: Peso argentino
A11: AUD | B11: Dólar australiano
A12: AWG | B12: Florín arubeño
A13: AZN | B13: Manat azerbaiyano
A14: BAM | B14: Marco convertible
A15: BBD | B15: Dólar de Barbados
A16: BDT | B16: Taka
A17: BGN | B17: Lev búlgaro
A18: BHD | B18: Dinar bareiní
A19: BIF | B19: Franco de Burundi
A20: BMD | B20: Dólar bermudeño
A21: BND | B21: Dólar de Brunéi
A22: BOB | B22: Boliviano
A23: BOV | B23: MVDOL
A24: BRL | B24: Real brasileño
A25: BSD | B25: Dólar bahameño
A26: BTN | B26: Ngultrum
A27: BWP | B27: Pula
A28: BYN | B28: Rublo bielorruso
A29: BZD | B29: Dólar beliceño
A30: CAD | B30: Dólar canadiense
A31: CDF | B31: Franco congoleño
A32: CHE | B32: Euro WIR
A33: CHF | B33: Franco suizo
A34: CHW | B34: Franco WIR
A35: CLF | B35: Unidad de fomento
A36: CLP | B36: Peso chileno
A37: CNY | B37: Yuan chino
A38: COP | B38: Peso colombiano
A39: COU | B39: Unidad de valor real
A40: CRC | B40: Colón costarricense
A41: CUC | B41: Peso convertible
A42: CUP | B42: Peso cubano
A43: CVE | B43: Escudo caboverdiano
A44: CZK | B44: Corona checa
A45: DJF | B45: Franco yibutiano
A46: DKK | B46: Corona danesa
A47: DOP | B47: Peso dominicano
A48: DZD | B48: Dinar argelino
A49: EGP | B49: Libra egipcia
A50: ERN | B50: Nakfa
A51: ETB | B51: Birr etíope
A52: FJD | B52: Dólar fiyiano
A53: FKP | B53: Libra malvinense
A54: GBP | B54: Libra esterlina
A55: GEL | B55: Lari
A56: GHS | B56: Cedi ghanés
A57: GIP | B57: Libra de Gibraltar
A58: GMD | B58: Dalasi
A59: GNF | B59: Franco guineano
A60: GTQ | B60: Quetzal
A61: GYD | B61: Dólar guyanés
A62: HKD | B62: Dólar de Hong Kong
A63: HNL | B63: Lempira
A64: HRK | B64: Kuna
A65: HTG | B65: Gourde
A66: HUF | B66: Forinto
A67: IDR | B67: Rupia indonesia
A68: ILS | B68: Nuevo shéquel israelí
A69: INR | B69: Rupia india
A70: IQD | B70: Dinar iraquí
A71: IRR | B71: Rial iraní
A72: ISK | B72: Corona islandesa
A73: JMD | B73: Dólar jamaiquino
A74: JOD | B74: Dinar jordano
A75: JPY | B75: Yen
A76: KES | B76: Chelín keniano
A77: KGS | B77: Som
A78: KHR | B78: Riel
A79: KMF | B79: Franco comorense
A80: KPW | B80: Won norcoreano
A81: KRW | B81: Won
A82: KWD | B82: Dinar kuwaití
A83: KYD | B83: Dólar de las Islas Caimán
A84: KZT | B84: Tenge
A85: LAK | B85: Kip
A86: LBP | B86: Libra libanesa
A87: LKR | B87: Rupia de Sri Lanka
A88: LRD | B88: Dólar liberiano
A89: LSL | B89: Loti
A90: LYD | B90: Dinar libio
A91: MAD | B91: Dírham marroquí
A92: MDL | B92: Leu moldavo
A93: MGA | B93: Ariary malgache
A94: MKD | B94: Denar
A95: MMK | B95: Kyat
A96: MNT | B96: Tugrik
A97: MOP | B97: Pataca
A98: MRU | B98: Uguiya
A99: MUR | B99: Rupia de Mauricio
A100: MVR | B100: Rufiyaa
A101: MWK | B101: Kwacha
A102: MXN | B102: Peso mexicano
A103: MXV | B103: Unidad de Inversión (UDI) mexicana
A104: MYR | B104: Ringgit malayo
A105: MZN | B105: Metical mozambiqueño
A106: NAD | B106: Dólar namibio
A107: NGN | B107: Naira
A108: NIO | B108: Córdoba
A109: NOK | B109: Corona noruega
A110: NPR | B110: Rupia nepalí
A111: NZD | B111: Dólar neozelandés
A112: OMR | B112: Rial omaní
A113: PAB | B113: Balboa
A114: PEN | B114: Sol
A115: PGK | B115: Kina
A116: PHP | B116: Peso filipino
A117: PKR | B117: Rupia pakistaní
A118: PLN | B118: Złoty
A119: QAR | B119: Riyal qatarí
A120: RON | B120: Leu rumano
A121: RSD | B121: Dinar serbio
A122: RUB | B122: Rublo ruso
A123: RWF | B123: Franco ruandés
A124: SAR | B124: Riyal saudí
A125: SBD | B125: Dólar de las Islas Salomón
A126: SCR | B126: Rupia seychelense
A127: SDG | B127: Dinar sudanés
A128: SEK | B128: Corona sueca
A129: SGD | B129: Dólar de Singapur
A130: SHP | B130: Libra de Santa Elena
A131: SLL | B131: Leone
A132: SOS | B132: Chelín somalí
A133: SRD | B133: Dólar surinamés
A134: SSP | B134: Libra sursudanesa
A135: STN | B135: Dobra
A136: SVC | B136: Colon Salvadoreño
A137: SYP | B137: Libra siria
A138: SZL | B138: Lilangeni
A139: THB | B139: Baht
A140: TJS | B140: Somoni tayiko
A141: TMT | B141: Manat turcomano
A142: TND | B142: Dinar tunecino
A143: TOP | B143: Paʻanga
A144: TRY | B144: Lira turca
A145: TTD | B145: Dólar de Trinidad y Tobago
A146: TWD | B146: Nuevo dólar taiwanés
A147: TZS | B147: Chelín tanzano
A148: UAH | B148: Grivna
A149: UGX | B149: Chelín ugandés
A150: USN | B150: Dólar estadounidense (Siguiente día)
A151: UYI | B151: Peso en Unidades Indexadas (Uruguay)
A152: UYU | B152: Peso uruguayo
A153: UYW | B153: Unidad Previsional
A154: UZS | B154: Som uzbeko
A155: VES7​ | B155: Bolívar soberano
A156: VND | B156: Dong vietnamita
A157: VUV | B157: Vatu
A158: WST | B158: Tala
A159: XAF | B159: Franco CFA de África Central
A160: XAG | B160: Plata (una onza troy)
A161: XAU | B161: Oro (una onza troy)
A162: XBA | B162: Unidad compuesta europea (EURCO) (Unidad del mercados de bonos)
A163: XBB | B163: Unidad Monetaria europea (E.M.U.-6) (Unidad del mercado de bonos)
A164: XBC | B164: Unidad europea de cuenta 9 (E.U.A.-9) (Unidad del mercado de bonos)
A165: XBD | B165: Unidad europea de cuenta 17 (E.U.A.-17) (Unidad del mercado de bonos)
A166: XCD | B166: Dólar del Caribe Oriental
A167: XDR | B167: Derechos especiales de giro
A168: XOF | B168: Franco CFA de África Occidental
A169: XPD | B169: Paladio (una onza troy)
A170: XPF | B170: Franco CFP
A171: XPT | B171: Platino (una onza troy)
A172: XSU | B172: SUCRE
A173: XTS | B173: Reservado para pruebas
A174: XUA | B174: Unidad de cuenta BAD
A175: XXX | B175: Sin divisa
A176: YER | B176: Rial yemení
A177: ZAR | B177: Rand
A178: ZMW | B178: Kwacha zambiano
A179: ZWL | B179: Dólar zimbabuense
